Workbook

Sheet Author & Legal
O2: <<< Click Logo to visit the Tactica website
B14: Copyright © 2022 Tactica RES LLC. All Rights Reserved.
B16: Legal
B18: Licensing: This content was developed solely for personal use and may not be distributed or reproduced for publication or for the personal or commercial use of others without permission. Your purchase is valid for one license of this tool. When you purchased this model, you were required to input an email address to receive the deliverable. This email address is considered to belong to the valid licensee who will receive updates with essential information, including but not limited to bug fixes and improvements.
B20: Disclaimers: Workbook may contain errors and inaccuracies. Please verify formulas, calculations, and logic for yourself. The workbook is meant to be utilized as a learning tool and should not be depended on when making financial decisions and assessing the feasibility of a real estate investment. This content was created for informational purposes only. Results may vary and adherence to the suggestions made herein do not guarantee results. Tactica RES LLC is not responsible for any liability, loss, or damage caused or alleged to be caused directly or indirectly as a result of the use, application, or interpretation of the content. All model inputs are subjective and a proforma analysis will never equate to actual property performance.
B22: To Review the Full Term & Conditions and Disclaimer Policy, please visit:
B23: Tactica RES LLC Terms & Conditions: https://www.tacticares.com/terms-conditions
B24: Tactica RES LLC Disclaimer: https://www.tacticares.com/disclaimer
F27: Click Button to Unlock Workbook
E35: Are you having trouble unlocking the workbook? Are your Macros enabled?
E37: Please Review the Pre-Analysis Steps: | K37: https://www.tacticares.com/blog-feed/investing-in-rental-properties-an-analysis-tutorial#pre-analysis

Sheet Versions
B2: Updates
B4: vD
B5: Tab
B6: Opening Workbook | C6: Must "Enable Macros" for advanced security measures
B7: Versions | C7: Added to dedicate a sole tab to version updates
B8: All tabs | C8: Changed certain cell colors to improve accessibility for users with disabilities.
B9: CAPEX Plan | C9: Labeling: "Draw" row (row 33) labeling was confusing. Changed label to "Capital Budget + Interest + Draw Cost." Technically, the draw is only the CAPEX budget
B10: CAPEX Plan | C10: Labeling: | D10: Calling row 36 "Max Monthly Cash Burden" now.
B11: Investment Summary | C11: Labeling: | D11: Calling cell "H6" "Max Monthly Cash Burden" now.
B12: Chart Inputs | C12: Made this tab visible. There are no manual inputs but it hosts chart data on "Investment Summary" tab.
B14: vC
B15: Tab
B16: Turnkey Summary | C16: DSCR was taking the NOI and dividing it by the "Refi" Debt PMT. Updated to divide by the "Conventional" Debt PMT.
B18: vB
B19: Tab
B20: Investment Summary | C20: GRM-The going-in purchase price can be divided by the rent(s) of any year for instances when the property stabilizes later in the investment hold (cell I33 controlled by H32)

Sheet Investment Summary
B2: Fix & Flip vs. Fix & Hold Analysis
B4: Acquisition Assumptions | E4: General Property Info | H4: Cash Management & Cash Required By Month | K4: Workbook Rules
B5: Price | C5: 205000 | E5: Address: | F5: 1234 1st Ave | H5: Cash to Close: | I5: 67244 | K5: *Do not add or delete any rows anywhere in the workbook
B6: Capex Budget | C6: 49500 | E6: City/State: | F6: Minneapolis, MN | H6: Max Monthly Cash Burden: | I6: 22662.58333 | K6: *Do not add or delete any columns anywhere in the workbook
B7: Cost of Loan | C7: 8144 | E7: Units: | F7: 2 | H7: Total Cash: | I7: 89906.58333 | K7: *Do not delete any worksheets
B8: 0.04 | C8: 8200 | E8: SF: | F8: 2200
B9: Total Cost Basis | C9: 270844 | E9: Projected Closing: | F9: 2020-10-01
B11: Equity Required: | C11: 67244 | E11: Strategy: | F11: Fix & Hold
B13: Construction/HML Financing | E13: Refi Conventional Financing | H13: Refi Metrics
B15: ARV: | C15: 325000 | E15: Name | F15: Bank/Agency | H15: Refi Month: | I15: 8
B16: Name: | C16: HML | E16: LTV | F16: 0.8 | H16: Total Refi Proceeds: | I16: 53800
B17: LTC: | C17: 0.8 | E17: Loan Amount | F17: 260000 | H17: % of Equity Returned: | I17: 0.8000713818
B18: Loan Amount: | C18: 203600 | E18: Int. Rate | F18: 0.0375 | H18: Cash Still in Deal: | I18: 13444
B19: Int. Rate: | C19: 0.055 | E19: Term (Years) | F19: 10 | H19: DSCR Year 2: | I19: 1.253509669
B20: Term (Months): | C20: 12 | E20: Amortization | F20: 30 | H20: DSCR Year 3: | I20: 1.288933663
B21: Interest Only: | C21: Full-Term | E21: Loan Cost | F21: 0.01 | H21: Cash-on-Cash Year 2: | I21: 0.2724645599
B22: Interest Accrual: | C22: Standard | E22: Interest Only: | F22: No | H22: Cash-on-Cash Year 3: | I22: 0.3105372019
B23: Loan Cost: | C23: 0.04 | E23: I/O Months | F23: 12
C25: Hold Period* | E25: Leveraged IRR: | F25: Equity Multiple: | H25: Annualized Rate of Return: | I25: Total Profit:
B26: Fix & Flip | C26: 7 | E26: 0.6036294639 | F26: 1.33484524 | H26: 0.5740204118 | I26: 22516.33333
B27: Fix & Hold | C27: 10 | E27: 0.2447601378 | F27: 3.320060986 | H27: 0.2320060986 | I27: 156010.181
B28: *Fix & Flip in months and Fix & Hold in years
B30: Conventional Financing | E30: Return Metrics | H30: Rent/Gross Rent Multiplier Comparison
B32: Name: | C32: - | E32: Hold Period (Years): | F32: 9 | H32: 1
B33: LTV: | C33: 0 | E33: All Cash IRR: | F33: 0.05062688291 | H33: Projected Avg Rent: | I33: 520.8333333
B34: Loan Amount: | C34: 0 | E34: Levered IRR: | H34: Gross Monthly Rent: | I34: 1041.666667
B35: Int. Rate: | C35: 0 | E35: All Cash Equity Multiple: | F35: 1.523099062 | H35: Gross Rent Multiplier: | I35: 16.4
B36: Term (Years): | C36: 0 | E36: Levered Equity Multiple:
B37: Amortization: | C37: 0 | E37: Levered Cash On Cash | H37: Sale in Year 9
B38: Loan Cost: | C38: 0 | E38: Year 1: | H38: Projected Avg Rent: | I38: 1583.462602
B39: Interest Only: | C39: No | E39: Year 2: | H39: Gross Monthly Rent: | I39: 3166.925203
B40: I/O Months: | C40: 12 | E40: Year 3: | H40: Gross Rent Multiplier: | I40: 9.353123582
B42: Sources & Uses | E42: Residual Assumptions if Held | H42: Cash Flow Summary If Held
B43: Purchase Price: | C43: 205000 | E43: Cost of Sale: | F43: 0.065
B44: Rehab Budget: | C44: 49500 | E44: Annual Appreciation Post Refi: | F44: 0.01
B45: Escrow & Closing Costs: | C45: 8200 | E45: Residual Sale Value: | F45: 355447.7136
B46: Loan Cost: | C46: 8144 | E46: Aggregate Appreciation: | F46: 0.733891286
B47: Total Uses: | C47: 270844 | E47: Appreciation Annualized | F47: 0.0565795152
B48: Sources: Loan Amount: | C48: 203600 | E48: Loan Paydown: | F48: -207027.351
B49: Sources: Equity Needed: | C49: 67244 | E49: Sale Cost: | F49: -23104.10139
B50: Total Sources: | C50: 270844 | E50: Total Sale Proceeds: | F50: 125316.2612

Sheet CAPEX Plan
B2: Rehab Duration (Months): | C2: 6
B3: Fix & Flip Sale Month: | C3: 7 | D3: <<Cell must be greater than 6 and 12 or less
B4: Fix & Hold Lease-Up Month: | C4: 8
B5: Fix & Hold Refinance Month: | C5: 8
B7: CAPEX Summary | G7: 2020-10-01 | H7: 2020-11-01 | I7: 2020-12-01 | J7: 2021-01-01 | K7: 2021-02-01 | L7: 2021-03-01 | M7: 2021-04-01 | N7: 2021-05-01 | O7: 2021-06-01 | P7: 2021-07-01 | Q7: 2021-08-01 | R7: 2021-09-01 | S7: 2021-10-01
B8: Capital Budget | C8: Amount | D8: Month Start | E8: Month End | F8: Project Duration | G8: 0 | H8: 1 | I8: 2 | J8: 3 | K8: 4 | L8: 5 | M8: 6 | N8: 7 | O8: 8 | P8: 9 | Q8: 10 | R8: 11 | S8: 12
B9: Windows | C9: 2000 | D9: 1 | E9: 1 | F9: 1 | H9: 2000 | I9: 0 | J9: 0 | K9: 0 | L9: 0 | M9: 0 | N9: 0 | O9: 0 | P9: 0 | Q9: 0 | R9: 0 | S9: 0
B10: Kitchens | C10: 10000 | D10: 2 | E10: 2 | F10: 1 | H10: 0 | I10: 10000 | J10: 0 | K10: 0 | L10: 0 | M10: 0 | N10: 0 | O10: 0 | P10: 0 | Q10: 0 | R10: 0 | S10: 0
B11: Bathroom | C11: 10000 | D11: 2 | E11: 3 | F11: 2 | H11: 0 | I11: 5000 | J11: 5000 | K11: 0 | L11: 0 | M11: 0 | N11: 0 | O11: 0 | P11: 0 | Q11: 0 | R11: 0 | S11: 0
B12: Electric | C12: 1500 | D12: 4 | E12: 4 | F12: 1 | H12: 0 | I12: 0 | J12: 0 | K12: 1500 | L12: 0 | M12: 0 | N12: 0 | O12: 0 | P12: 0 | Q12: 0 | R12: 0 | S12: 0
B13: Painting | C13: 8000 | D13: 5 | E13: 5 | F13: 1 | H13: 0 | I13: 0 | J13: 0 | K13: 0 | L13: 8000 | M13: 0 | N13: 0 | O13: 0 | P13: 0 | Q13: 0 | R13: 0 | S13: 0
B14: Flooring | C14: 6000 | D14: 6 | E14: 6 | F14: 1 | H14: 0 | I14: 0 | J14: 0 | K14: 0 | L14: 0 | M14: 6000 | N14: 0 | O14: 0 | P14: 0 | Q14: 0 | R14: 0 | S14: 0
B15: Project MGMT | C15: 7500 | D15: 1 | E15: 6 | F15: 6 | H15: 1250 | I15: 1250 | J15: 1250 | K15: 1250 | L15: 1250 | M15: 1250 | N15: 0 | O15: 0 | P15: 0 | Q15: 0 | R15: 0 | S15: 0
B16: Cotingency | C16: 4500 | D16: 1 | E16: 6 | F16: 6 | H16: 750 | I16: 750 | J16: 750 | K16: 750 | L16: 750 | M16: 750 | N16: 0 | O16: 0 | P16: 0 | Q16: 0 | R16: 0 | S16: 0
H17: 0 | I17: 0 | J17: 0 | K17: 0 | L17: 0 | M17: 0 | N17: 0 | O17: 0 | P17: 0 | Q17: 0 | R17: 0 | S17: 0
H18: 0 | I18: 0 | J18: 0 | K18: 0 | L18: 0 | M18: 0 | N18: 0 | O18: 0 | P18: 0 | Q18: 0 | R18: 0 | S18: 0
H19: 0 | I19: 0 | J19: 0 | K19: 0 | L19: 0 | M19: 0 | N19: 0 | O19: 0 | P19: 0 | Q19: 0 | R19: 0 | S19: 0
H20: 0 | I20: 0 | J20: 0 | K20: 0 | L20: 0 | M20: 0 | N20: 0 | O20: 0 | P20: 0 | Q20: 0 | R20: 0 | S20: 0
H21: 0 | I21: 0 | J21: 0 | K21: 0 | L21: 0 | M21: 0 | N21: 0 | O21: 0 | P21: 0 | Q21: 0 | R21: 0 | S21: 0
H22: 0 | I22: 0 | J22: 0 | K22: 0 | L22: 0 | M22: 0 | N22: 0 | O22: 0 | P22: 0 | Q22: 0 | R22: 0 | S22: 0
B23: Total Capital | C23: 49500 | H23: 4000 | I23: 17000 | J23: 7000 | K23: 3500 | L23: 10000 | M23: 8000 | N23: 0 | O23: 0 | P23: 0 | Q23: 0 | R23: 0 | S23: 0
B24: Allocation | H24: 0.08080808081 | I24: 0.3434343434 | J24: 0.1414141414 | K24: 0.07070707071 | L24: 0.202020202 | M24: 0.1616161616 | N24: 0 | O24: 0 | P24: 0 | Q24: 0 | R24: 0 | S24: 0
B26: Draws | I26: 1 | K26: 1 | M26: 1
B27: Funds Drawn | G27: 154100 | H27: 154100 | I27: 175100 | J27: 175100 | K27: 185600 | L27: 185600 | M27: 203600 | N27: 203600 | O27: 0 | P27: 0 | Q27: 0 | R27: 0 | S27: 0
B28: Interest | C28: 0.055 | H28: 706.2916667 | I28: 706.2916667 | J28: 802.5416667 | K28: 802.5416667 | L28: 850.6666667 | M28: 850.6666667 | N28: 933.1666667 | O28: 933.1666667 | P28: 0 | Q28: 0 | R28: 0 | S28: 0
B29: Cost of Draw | C29: 250 | H29: 0 | I29: 250 | J29: 0 | K29: 250 | L29: 0 | M29: 250 | N29: 0 | O29: 0 | P29: 0 | Q29: 0 | R29: 0 | S29: 0
B30: Interest & Draw Cost: | H30: 706.2916667 | I30: 956.2916667 | J30: 802.5416667 | K30: 1052.541667 | L30: 850.6666667 | M30: 1100.666667 | N30: 933.1666667 | O30: 933.1666667 | P30: 0 | Q30: 0 | R30: 0 | S30: 0
B32: Total Cash Outflow: | H32: 4706.291667 | I32: 17956.29167 | J32: 7802.541667 | K32: 4552.541667 | L32: 10850.66667 | M32: 9100.666667 | N32: 933.1666667 | O32: 933.1666667 | P32: 0 | Q32: 0 | R32: 0 | S32: 0
B33: Capital Budget + Interest + Draw Cost | H33: 0 | I33: 22662.58333 | J33: 0 | K33: 12355.08333 | L33: 0 | M33: 19951.33333 | N33: 0 | O33: 0 | P33: 0 | Q33: 0 | R33: 0 | S33: 0
B35: Total Interest After Last Draw: | C35: 1866.333333
B36: Max Monthly Cash Burden: | C36: 22662.58333

Sheet Operating Summary
P1: Monthly Cash Flows
B2: Operations | C2: Prestabilized | E2: Stabilized | G2: Full-Year Stabilized | J2: Annual Escalator | L2: Summary of Stabilized Operations | T2: 1 | U2: 2 | V2: 3 | W2: 4 | X2: 5 | Y2: 6 | Z2: 7 | AA2: 8 | AB2: 9 | AC2: 10 | AD2: 11 | AE2: 12 | AF2: 13 | AG2: 14 | AH2: 15 | AI2: 16 | AJ2: 17 | AK2: 18 | AL2: 19 | AM2: 20 | AN2: 21 | AO2: 22 | AP2: 23 | AQ2: 24 | AR2: 25 | AS2: 26 | AT2: 27 | AU2: 28 | AV2: 29 | AW2: 30 | AX2: 31 | AY2: 32 | AZ2: 33 | BA2: 34 | BB2: 35 | BC2: 36 | BE2: 10-Year Cash Operating Cash Flow
C4: Months: | E4: Months: | G4: Months: | J4: Months:
C5: 1 | D5: 7 | E5: 8 | F5: 12 | H5: 13 - 24 | J5: 25 - 120
B7: Revenue | C7: Monthly | D7: Annual | E7: Monthly | F7: Annual | G7: Monthly | H7: Annual | I7: %Δ over Stabilized | J7: %Δ | M7: Monthly | N7: Annual | BF7: 1 | BG7: 2 | BH7: 3 | BI7: 4 | BJ7: 5 | BK7: 6 | BL7: 7 | BM7: 8 | BN7: 9 | BO7: 10
B8: Rent Unit #1 | E8: 1300 | I8: 0.03 | J8: 0.03 | L8: Rent Unit #1 | M8: 1300 | N8: 15600 | P8: 0 | Q8: 1300 | R8: 1339 | T8: 0 | U8: 0 | V8: 0 | W8: 0 | X8: 0 | Y8: 0 | Z8: 0 | AA8: 1300 | AB8: 1300 | AC8: 1300 | AD8: 1300 | AE8: 1300 | AF8: 1339 | AG8: 1339 | AH8: 1339 | AI8: 1339 | AJ8: 1339 | AK8: 1339 | AL8: 1339 | AM8: 1339 | AN8: 1339 | AO8: 1339 | AP8: 1339 | AQ8: 1339 | AR8: 1379.17 | AS8: 1379.17 | AT8: 1379.17 | AU8: 1379.17 | AV8: 1379.17 | AW8: 1379.17 | AX8: 1379.17 | AY8: 1379.17 | AZ8: 1379.17 | BA8: 1379.17 | BB8: 1379.17 | BC8: 1379.17 | BE8: Rent Unit #1 | BF8: 6500 | BG8: 16068 | BH8: 16550.04 | BI8: 17046.5412 | BJ8: 17557.93744 | BK8: 18084.67556 | BL8: 18627.21583 | BM8: 19186.0323 | BN8: 19761.61327 | BO8: 20354.46167
B9: Rent Unit #2 | E9: 1200 | I9: 0.03 | J9: 0.03 | L9: Rent Unit #2 | M9: 1200 | N9: 14400 | P9: 0 | Q9: 1200 | R9: 1236 | T9: 0 | U9: 0 | V9: 0 | W9: 0 | X9: 0 | Y9: 0 | Z9: 0 | AA9: 1200 | AB9: 1200 | AC9: 1200 | AD9: 1200 | AE9: 1200 | AF9: 1236 | AG9: 1236 | AH9: 1236 | AI9: 1236 | AJ9: 1236 | AK9: 1236 | AL9: 1236 | AM9: 1236 | AN9: 1236 | AO9: 1236 | AP9: 1236 | AQ9: 1236 | AR9: 1273.08 | AS9: 1273.08 | AT9: 1273.08 | AU9: 1273.08 | AV9: 1273.08 | AW9: 1273.08 | AX9: 1273.08 | AY9: 1273.08 | AZ9: 1273.08 | BA9: 1273.08 | BB9: 1273.08 | BC9: 1273.08 | BE9: Rent Unit #2 | BF9: 6000 | BG9: 14832 | BH9: 15276.96 | BI9: 15735.2688 | BJ9: 16207.32686 | BK9: 16693.54667 | BL9: 17194.35307 | BM9: 17710.18366 | BN9: 18241.48917 | BO9: 18788.73385
B10: Rent Unit #3 | E10: 0 | L10: Rent Unit #3 | M10: 0 | N10: 0 | P10: 0 | Q10: 0 | R10: 0 | T10: 0 | U10: 0 | V10: 0 | W10: 0 | X10: 0 | Y10: 0 | Z10: 0 | AA10: 0 | AB10: 0 | AC10: 0 | AD10: 0 | AE10: 0 | AF10: 0 | AG10: 0 | AH10: 0 | AI10: 0 | AJ10: 0 | AK10: 0 | AL10: 0 | AM10: 0 | AN10: 0 | AO10: 0 | AP10: 0 | AQ10: 0 | AR10: 0 | AS10: 0 | AT10: 0 | AU10: 0 | AV10: 0 | AW10: 0 | AX10: 0 | AY10: 0 | AZ10: 0 | BA10: 0 | BB10: 0 | BC10: 0 | BE10: Rent Unit #3 | BF10: 0 | BG10: 0 | BH10: 0 | BI10: 0 | BJ10: 0 | BK10: 0 | BL10: 0 | BM10: 0 | BN10: 0 | BO10: 0
B11: Rent Unit #4 | E11: 0 | L11: Rent Unit #4 | M11: 0 | N11: 0 | P11: 0 | Q11: 0 | R11: 0 | T11: 0 | U11: 0 | V11: 0 | W11: 0 | X11: 0 | Y11: 0 | Z11: 0 | AA11: 0 | AB11: 0 | AC11: 0 | AD11: 0 | AE11: 0 | AF11: 0 | AG11: 0 | AH11: 0 | AI11: 0 | AJ11: 0 | AK11: 0 | AL11: 0 | AM11: 0 | AN11: 0 | AO11: 0 | AP11: 0 | AQ11: 0 | AR11: 0 | AS11: 0 | AT11: 0 | AU11: 0 | AV11: 0 | AW11: 0 | AX11: 0 | AY11: 0 | AZ11: 0 | BA11: 0 | BB11: 0 | BC11: 0 | BE11: Rent Unit #4 | BF11: 0 | BG11: 0 | BH11: 0 | BI11: 0 | BJ11: 0 | BK11: 0 | BL11: 0 | BM11: 0 | BN11: 0 | BO11: 0
B12: Laundry | L12: Laundry | M12: 0 | N12: 0 | P12: 0 | Q12: 0 | R12: 0 | T12: 0 | U12: 0 | V12: 0 | W12: 0 | X12: 0 | Y12: 0 | Z12: 0 | AA12: 0 | AB12: 0 | AC12: 0 | AD12: 0 | AE12: 0 | AF12: 0 | AG12: 0 | AH12: 0 | AI12: 0 | AJ12: 0 | AK12: 0 | AL12: 0 | AM12: 0 | AN12: 0 | AO12: 0 | AP12: 0 | AQ12: 0 | AR12: 0 | AS12: 0 | AT12: 0 | AU12: 0 | AV12: 0 | AW12: 0 | AX12: 0 | AY12: 0 | AZ12: 0 | BA12: 0 | BB12: 0 | BC12: 0 | BE12: Laundry | BF12: 0 | BG12: 0 | BH12: 0 | BI12: 0 | BJ12: 0 | BK12: 0 | BL12: 0 | BM12: 0 | BN12: 0 | BO12: 0
B13: Parking | E13: 50 | I13: 0.03 | J13: 0.03 | L13: Parking | M13: 50 | N13: 600 | P13: 0 | Q13: 50 | R13: 51.5 | T13: 0 | U13: 0 | V13: 0 | W13: 0 | X13: 0 | Y13: 0 | Z13: 0 | AA13: 50 | AB13: 50 | AC13: 50 | AD13: 50 | AE13: 50 | AF13: 51.5 | AG13: 51.5 | AH13: 51.5 | AI13: 51.5 | AJ13: 51.5 | AK13: 51.5 | AL13: 51.5 | AM13: 51.5 | AN13: 51.5 | AO13: 51.5 | AP13: 51.5 | AQ13: 51.5 | AR13: 53.045 | AS13: 53.045 | AT13: 53.045 | AU13: 53.045 | AV13: 53.045 | AW13: 53.045 | AX13: 53.045 | AY13: 53.045 | AZ13: 53.045 | BA13: 53.045 | BB13: 53.045 | BC13: 53.045 | BE13: Parking | BF13: 250 | BG13: 618 | BH13: 636.54 | BI13: 655.6362 | BJ13: 675.305286 | BK13: 695.5644446 | BL13: 716.4313779 | BM13: 737.9243193 | BN13: 760.0620488 | BO13: 782.8639103
B14: Admin | L14: Admin | M14: 0 | N14: 0 | P14: 0 | Q14: 0 | R14: 0 | T14: 0 | U14: 0 | V14: 0 | W14: 0 | X14: 0 | Y14: 0 | Z14: 0 | AA14: 0 | AB14: 0 | AC14: 0 | AD14: 0 | AE14: 0 | AF14: 0 | AG14: 0 | AH14: 0 | AI14: 0 | AJ14: 0 | AK14: 0 | AL14: 0 | AM14: 0 | AN14: 0 | AO14: 0 | AP14: 0 | AQ14: 0 | AR14: 0 | AS14: 0 | AT14: 0 | AU14: 0 | AV14: 0 | AW14: 0 | AX14: 0 | AY14: 0 | AZ14: 0 | BA14: 0 | BB14: 0 | BC14: 0 | BE14: Admin | BF14: 0 | BG14: 0 | BH14: 0 | BI14: 0 | BJ14: 0 | BK14: 0 | BL14: 0 | BM14: 0 | BN14: 0 | BO14: 0
B15: Other | L15: Other | M15: 0 | N15: 0 | P15: 0 | Q15: 0 | R15: 0 | T15: 0 | U15: 0 | V15: 0 | W15: 0 | X15: 0 | Y15: 0 | Z15: 0 | AA15: 0 | AB15: 0 | AC15: 0 | AD15: 0 | AE15: 0 | AF15: 0 | AG15: 0 | AH15: 0 | AI15: 0 | AJ15: 0 | AK15: 0 | AL15: 0 | AM15: 0 | AN15: 0 | AO15: 0 | AP15: 0 | AQ15: 0 | AR15: 0 | AS15: 0 | AT15: 0 | AU15: 0 | AV15: 0 | AW15: 0 | AX15: 0 | AY15: 0 | AZ15: 0 | BA15: 0 | BB15: 0 | BC15: 0 | BE15: Other | BF15: 0 | BG15: 0 | BH15: 0 | BI15: 0 | BJ15: 0 | BK15: 0 | BL15: 0 | BM15: 0 | BN15: 0 | BO15: 0
B16: Other | L16: Other | M16: 0 | N16: 0 | P16: 0 | Q16: 0 | R16: 0 | T16: 0 | U16: 0 | V16: 0 | W16: 0 | X16: 0 | Y16: 0 | Z16: 0 | AA16: 0 | AB16: 0 | AC16: 0 | AD16: 0 | AE16: 0 | AF16: 0 | AG16: 0 | AH16: 0 | AI16: 0 | AJ16: 0 | AK16: 0 | AL16: 0 | AM16: 0 | AN16: 0 | AO16: 0 | AP16: 0 | AQ16: 0 | AR16: 0 | AS16: 0 | AT16: 0 | AU16: 0 | AV16: 0 | AW16: 0 | AX16: 0 | AY16: 0 | AZ16: 0 | BA16: 0 | BB16: 0 | BC16: 0 | BE16: Other | BF16: 0 | BG16: 0 | BH16: 0 | BI16: 0 | BJ16: 0 | BK16: 0 | BL16: 0 | BM16: 0 | BN16: 0 | BO16: 0
L17: Total Revenue | M17: 2550 | N17: 30600 | P17: 0 | Q17: 2550 | R17: 2626.5 | T17: 0 | U17: 0 | V17: 0 | W17: 0 | X17: 0 | Y17: 0 | Z17: 0 | AA17: 2550 | AB17: 2550 | AC17: 2550 | AD17: 2550 | AE17: 2550 | AF17: 2626.5 | AG17: 2626.5 | AH17: 2626.5 | AI17: 2626.5 | AJ17: 2626.5 | AK17: 2626.5 | AL17: 2626.5 | AM17: 2626.5 | AN17: 2626.5 | AO17: 2626.5 | AP17: 2626.5 | AQ17: 2626.5 | AR17: 2705.295 | AS17: 2705.295 | AT17: 2705.295 | AU17: 2705.295 | AV17: 2705.295 | AW17: 2705.295 | AX17: 2705.295 | AY17: 2705.295 | AZ17: 2705.295 | BA17: 2705.295 | BB17: 2705.295 | BC17: 2705.295 | BE17: Total Revenue | BF17: 12750 | BG17: 31518 | BH17: 32463.54 | BI17: 33437.4462 | BJ17: 34440.56959 | BK17: 35473.78667 | BL17: 36538.00027 | BM17: 37634.14028 | BN17: 38763.16449 | BO17: 39926.05943
B19: Economic Loss (% of Rev.) | D19: 0 | F19: 0.05 | I19: 0.05 | J19: 0.05 | L19: Economic Loss (% of Rev.) | M19: -127.5 | N19: -1530 | P19: 0 | Q19: -127.5 | R19: -131.325 | T19: 0 | U19: 0 | V19: 0 | W19: 0 | X19: 0 | Y19: 0 | Z19: 0 | AA19: -127.5 | AB19: -127.5 | AC19: -127.5 | AD19: -127.5 | AE19: -127.5 | AF19: -131.325 | AG19: -131.325 | AH19: -131.325 | AI19: -131.325 | AJ19: -131.325 | AK19: -131.325 | AL19: -131.325 | AM19: -131.325 | AN19: -131.325 | AO19: -131.325 | AP19: -131.325 | AQ19: -131.325 | AR19: -137.89125 | AS19: -137.89125 | AT19: -137.89125 | AU19: -137.89125 | AV19: -137.89125 | AW19: -137.89125 | AX19: -137.89125 | AY19: -137.89125 | AZ19: -137.89125 | BA19: -137.89125 | BB19: -137.89125 | BC19: -137.89125 | BE19: Economic Loss (% of Rev.) | BF19: -637.5 | BG19: -1575.9 | BH19: -1654.695 | BI19: -1671.87231 | BJ19: -1722.028479 | BK19: -1773.689334 | BL19: -1826.900014 | BM19: -1881.707014 | BN19: -1938.158225 | BO19: -1996.302971
B21: Expense | C21: Monthly | D21: Annual | E21: Monthly | F21: Annual | G21: Monthly | H21: Annual | I21: %Δ over Stabilized | J21: %Δ | M21: Monthly | N21: Annual
B22: 0.06 | C22: 0 | D22: 0 | E22: 153 | F22: 1836 | G22: 157.59 | H22: 1891.08 | I22: 0.03 | J22: 0.03 | L22: 0.06 | M22: 153 | N22: 1836 | P22: 0 | Q22: 153 | R22: 157.59 | T22: 0 | U22: 0 | V22: 0 | W22: 0 | X22: 0 | Y22: 0 | Z22: 0 | AA22: 153 | AB22: 153 | AC22: 153 | AD22: 153 | AE22: 153 | AF22: 157.59 | AG22: 157.59 | AH22: 157.59 | AI22: 157.59 | AJ22: 157.59 | AK22: 157.59 | AL22: 157.59 | AM22: 157.59 | AN22: 157.59 | AO22: 157.59 | AP22: 157.59 | AQ22: 157.59 | AR22: 162.3177 | AS22: 162.3177 | AT22: 162.3177 | AU22: 162.3177 | AV22: 162.3177 | AW22: 162.3177 | AX22: 162.3177 | AY22: 162.3177 | AZ22: 162.3177 | BA22: 162.3177 | BB22: 162.3177 | BC22: 162.3177 | BE22: 0.06 | BF22: 765 | BG22: 1891.08 | BH22: 1947.8124 | BI22: 2006.246772 | BJ22: 2066.434175 | BK22: 2128.4272 | BL22: 2192.280016 | BM22: 2258.048417 | BN22: 2325.789869 | BO22: 2395.563566
B23: Admin. | F23: 300 | I23: 0.03 | J23: 0.03 | L23: Admin. | M23: 25 | N23: 300 | P23: 0 | Q23: 25 | R23: 25.75 | T23: 0 | U23: 0 | V23: 0 | W23: 0 | X23: 0 | Y23: 0 | Z23: 0 | AA23: 25 | AB23: 25 | AC23: 25 | AD23: 25 | AE23: 25 | AF23: 25.75 | AG23: 25.75 | AH23: 25.75 | AI23: 25.75 | AJ23: 25.75 | AK23: 25.75 | AL23: 25.75 | AM23: 25.75 | AN23: 25.75 | AO23: 25.75 | AP23: 25.75 | AQ23: 25.75 | AR23: 26.5225 | AS23: 26.5225 | AT23: 26.5225 | AU23: 26.5225 | AV23: 26.5225 | AW23: 26.5225 | AX23: 26.5225 | AY23: 26.5225 | AZ23: 26.5225 | BA23: 26.5225 | BB23: 26.5225 | BC23: 26.5225 | BE23: Admin. | BF23: 125 | BG23: 309 | BH23: 318.27 | BI23: 327.8181 | BJ23: 337.652643 | BK23: 347.7822223 | BL23: 358.215689 | BM23: 368.9621596 | BN23: 380.0310244 | BO23: 391.4319551
B24: Marketing | L24: Marketing | M24: 0 | N24: 0 | P24: 0 | Q24: 0 | R24: 0 | T24: 0 | U24: 0 | V24: 0 | W24: 0 | X24: 0 | Y24: 0 | Z24: 0 | AA24: 0 | AB24: 0 | AC24: 0 | AD24: 0 | AE24: 0 | AF24: 0 | AG24: 0 | AH24: 0 | AI24: 0 | AJ24: 0 | AK24: 0 | AL24: 0 | AM24: 0 | AN24: 0 | AO24: 0 | AP24: 0 | AQ24: 0 | AR24: 0 | AS24: 0 | AT24: 0 | AU24: 0 | AV24: 0 | AW24: 0 | AX24: 0 | AY24: 0 | AZ24: 0 | BA24: 0 | BB24: 0 | BC24: 0 | BE24: Marketing | BF24: 0 | BG24: 0 | BH24: 0 | BI24: 0 | BJ24: 0 | BK24: 0 | BL24: 0 | BM24: 0 | BN24: 0 | BO24: 0
B25: Heat/Gas | C25: 100 | L25: Heat/Gas | M25: 0 | N25: 0 | P25: 100 | Q25: 0 | R25: 0 | T25: 100 | U25: 100 | V25: 100 | W25: 100 | X25: 100 | Y25: 100 | Z25: 100 | AA25: 0 | AB25: 0 | AC25: 0 | AD25: 0 | AE25: 0 | AF25: 0 | AG25: 0 | AH25: 0 | AI25: 0 | AJ25: 0 | AK25: 0 | AL25: 0 | AM25: 0 | AN25: 0 | AO25: 0 | AP25: 0 | AQ25: 0 | AR25: 0 | AS25: 0 | AT25: 0 | AU25: 0 | AV25: 0 | AW25: 0 | AX25: 0 | AY25: 0 | AZ25: 0 | BA25: 0 | BB25: 0 | BC25: 0 | BE25: Heat/Gas | BF25: 700 | BG25: 0 | BH25: 0 | BI25: 0 | BJ25: 0 | BK25: 0 | BL25: 0 | BM25: 0 | BN25: 0 | BO25: 0
B26: Water & Trash | C26: 75 | E26: 150 | I26: 0.03 | J26: 0.03 | L26: Water & Trash | M26: 150 | N26: 1800 | P26: 75 | Q26: 150 | R26: 154.5 | T26: 75 | U26: 75 | V26: 75 | W26: 75 | X26: 75 | Y26: 75 | Z26: 75 | AA26: 150 | AB26: 150 | AC26: 150 | AD26: 150 | AE26: 150 | AF26: 154.5 | AG26: 154.5 | AH26: 154.5 | AI26: 154.5 | AJ26: 154.5 | AK26: 154.5 | AL26: 154.5 | AM26: 154.5 | AN26: 154.5 | AO26: 154.5 | AP26: 154.5 | AQ26: 154.5 | AR26: 159.135 | AS26: 159.135 | AT26: 159.135 | AU26: 159.135 | AV26: 159.135 | AW26: 159.135 | AX26: 159.135 | AY26: 159.135 | AZ26: 159.135 | BA26: 159.135 | BB26: 159.135 | BC26: 159.135 | BE26: Water & Trash | BF26: 1275 | BG26: 1854 | BH26: 1909.62 | BI26: 1966.9086 | BJ26: 2025.915858 | BK26: 2086.693334 | BL26: 2149.294134 | BM26: 2213.772958 | BN26: 2280.186146 | BO26: 2348.591731
B27: Electricity | C27: 100 | E27: 30 | I27: 0.03 | J27: 0.03 | L27: Electricity | M27: 30 | N27: 360 | P27: 100 | Q27: 30 | R27: 30.9 | T27: 100 | U27: 100 | V27: 100 | W27: 100 | X27: 100 | Y27: 100 | Z27: 100 | AA27: 30 | AB27: 30 | AC27: 30 | AD27: 30 | AE27: 30 | AF27: 30.9 | AG27: 30.9 | AH27: 30.9 | AI27: 30.9 | AJ27: 30.9 | AK27: 30.9 | AL27: 30.9 | AM27: 30.9 | AN27: 30.9 | AO27: 30.9 | AP27: 30.9 | AQ27: 30.9 | AR27: 31.827 | AS27: 31.827 | AT27: 31.827 | AU27: 31.827 | AV27: 31.827 | AW27: 31.827 | AX27: 31.827 | AY27: 31.827 | AZ27: 31.827 | BA27: 31.827 | BB27: 31.827 | BC27: 31.827 | BE27: Electricity | BF27: 850 | BG27: 370.8 | BH27: 381.924 | BI27: 393.38172 | BJ27: 405.1831716 | BK27: 417.3386667 | BL27: 429.8588268 | BM27: 442.7545916 | BN27: 456.0372293 | BO27: 469.7183462
B28: Repairs | E28: 100 | I28: 0.03 | J28: 0.03 | L28: Repairs | M28: 100 | N28: 1200 | P28: 0 | Q28: 100 | R28: 103 | T28: 0 | U28: 0 | V28: 0 | W28: 0 | X28: 0 | Y28: 0 | Z28: 0 | AA28: 100 | AB28: 100 | AC28: 100 | AD28: 100 | AE28: 100 | AF28: 103 | AG28: 103 | AH28: 103 | AI28: 103 | AJ28: 103 | AK28: 103 | AL28: 103 | AM28: 103 | AN28: 103 | AO28: 103 | AP28: 103 | AQ28: 103 | AR28: 106.09 | AS28: 106.09 | AT28: 106.09 | AU28: 106.09 | AV28: 106.09 | AW28: 106.09 | AX28: 106.09 | AY28: 106.09 | AZ28: 106.09 | BA28: 106.09 | BB28: 106.09 | BC28: 106.09 | BE28: Repairs | BF28: 500 | BG28: 1236 | BH28: 1273.08 | BI28: 1311.2724 | BJ28: 1350.610572 | BK28: 1391.128889 | BL28: 1432.862756 | BM28: 1475.848639 | BN28: 1520.124098 | BO28: 1565.727821
B29: Insurance | C29: 75 | F29: 1100 | I29: 0.03 | J29: 0.03 | L29: Insurance | M29: 91.66666667 | N29: 1100 | P29: 75 | Q29: 91.66666667 | R29: 94.41666667 | T29: 75 | U29: 75 | V29: 75 | W29: 75 | X29: 75 | Y29: 75 | Z29: 75 | AA29: 91.66666667 | AB29: 91.66666667 | AC29: 91.66666667 | AD29: 91.66666667 | AE29: 91.66666667 | AF29: 94.41666667 | AG29: 94.41666667 | AH29: 94.41666667 | AI29: 94.41666667 | AJ29: 94.41666667 | AK29: 94.41666667 | AL29: 94.41666667 | AM29: 94.41666667 | AN29: 94.41666667 | AO29: 94.41666667 | AP29: 94.41666667 | AQ29: 94.41666667 | AR29: 97.24916667 | AS29: 97.24916667 | AT29: 97.24916667 | AU29: 97.24916667 | AV29: 97.24916667 | AW29: 97.24916667 | AX29: 97.24916667 | AY29: 97.24916667 | AZ29: 97.24916667 | BA29: 97.24916667 | BB29: 97.24916667 | BC29: 97.24916667 | BE29: Insurance | BF29: 983.3333333 | BG29: 1133 | BH29: 1166.99 | BI29: 1201.9997 | BJ29: 1238.059691 | BK29: 1275.201482 | BL29: 1313.457526 | BM29: 1352.861252 | BN29: 1393.44709 | BO29: 1435.250502
B30: Property Taxes | D30: 2850 | F30: 2850 | H30: 3800 | J30: 0.03 | L30: Property Taxes | M30: 237.5 | N30: 2850 | P30: 237.5 | Q30: 237.5 | R30: 316.6666667 | T30: 237.5 | U30: 237.5 | V30: 237.5 | W30: 237.5 | X30: 237.5 | Y30: 237.5 | Z30: 237.5 | AA30: 237.5 | AB30: 237.5 | AC30: 237.5 | AD30: 237.5 | AE30: 237.5 | AF30: 316.6666667 | AG30: 316.6666667 | AH30: 316.6666667 | AI30: 316.6666667 | AJ30: 316.6666667 | AK30: 316.6666667 | AL30: 316.6666667 | AM30: 316.6666667 | AN30: 316.6666667 | AO30: 316.6666667 | AP30: 316.6666667 | AQ30: 316.6666667 | AR30: 326.1666667 | AS30: 326.1666667 | AT30: 326.1666667 | AU30: 326.1666667 | AV30: 326.1666667 | AW30: 326.1666667 | AX30: 326.1666667 | AY30: 326.1666667 | AZ30: 326.1666667 | BA30: 326.1666667 | BB30: 326.1666667 | BC30: 326.1666667 | BE30: Property Taxes | BF30: 2850 | BG30: 3800 | BH30: 3914 | BI30: 4031.42 | BJ30: 4152.3626 | BK30: 4276.933478 | BL30: 4405.241482 | BM30: 4537.398727 | BN30: 4673.520689 | BO30: 4813.726309
B31: Other | L31: Other | M31: 0 | N31: 0 | P31: 0 | Q31: 0 | R31: 0 | T31: 0 | U31: 0 | V31: 0 | W31: 0 | X31: 0 | Y31: 0 | Z31: 0 | AA31: 0 | AB31: 0 | AC31: 0 | AD31: 0 | AE31: 0 | AF31: 0 | AG31: 0 | AH31: 0 | AI31: 0 | AJ31: 0 | AK31: 0 | AL31: 0 | AM31: 0 | AN31: 0 | AO31: 0 | AP31: 0 | AQ31: 0 | AR31: 0 | AS31: 0 | AT31: 0 | AU31: 0 | AV31: 0 | AW31: 0 | AX31: 0 | AY31: 0 | AZ31: 0 | BA31: 0 | BB31: 0 | BC31: 0 | BE31: Other | BF31: 0 | BG31: 0 | BH31: 0 | BI31: 0 | BJ31: 0 | BK31: 0 | BL31: 0 | BM31: 0 | BN31: 0 | BO31: 0
B32: Other | L32: Other | M32: 0 | N32: 0 | P32: 0 | Q32: 0 | R32: 0 | T32: 0 | U32: 0 | V32: 0 | W32: 0 | X32: 0 | Y32: 0 | Z32: 0 | AA32: 0 | AB32: 0 | AC32: 0 | AD32: 0 | AE32: 0 | AF32: 0 | AG32: 0 | AH32: 0 | AI32: 0 | AJ32: 0 | AK32: 0 | AL32: 0 | AM32: 0 | AN32: 0 | AO32: 0 | AP32: 0 | AQ32: 0 | AR32: 0 | AS32: 0 | AT32: 0 | AU32: 0 | AV32: 0 | AW32: 0 | AX32: 0 | AY32: 0 | AZ32: 0 | BA32: 0 | BB32: 0 | BC32: 0 | BE32: Other | BF32: 0 | BG32: 0 | BH32: 0 | BI32: 0 | BJ32: 0 | BK32: 0 | BL32: 0 | BM32: 0 | BN32: 0 | BO32: 0
B33: Reserves | E33: 100 | I33: 0.03 | J33: 0.03 | L33: Reserves | M33: 100 | N33: 1200 | P33: 0 | Q33: 100 | R33: 103 | T33: 0 | U33: 0 | V33: 0 | W33: 0 | X33: 0 | Y33: 0 | Z33: 0 | AA33: 100 | AB33: 100 | AC33: 100 | AD33: 100 | AE33: 100 | AF33: 103 | AG33: 103 | AH33: 103 | AI33: 103 | AJ33: 103 | AK33: 103 | AL33: 103 | AM33: 103 | AN33: 103 | AO33: 103 | AP33: 103 | AQ33: 103 | AR33: 106.09 | AS33: 106.09 | AT33: 106.09 | AU33: 106.09 | AV33: 106.09 | AW33: 106.09 | AX33: 106.09 | AY33: 106.09 | AZ33: 106.09 | BA33: 106.09 | BB33: 106.09 | BC33: 106.09 | BE33: Reserves | BF33: 500 | BG33: 1236 | BH33: 1273.08 | BI33: 1311.2724 | BJ33: 1350.610572 | BK33: 1391.128889 | BL33: 1432.862756 | BM33: 1475.848639 | BN33: 1520.124098 | BO33: 1565.727821
B34: *MGMT Fee is always a % of Revenue | L34: Total Expense | M34: 887.1666667 | N34: 10646 | P34: 587.5 | Q34: 887.1666667 | R34: 985.8233333 | T34: 587.5 | U34: 587.5 | V34: 587.5 | W34: 587.5 | X34: 587.5 | Y34: 587.5 | Z34: 587.5 | AA34: 887.1666667 | AB34: 887.1666667 | AC34: 887.1666667 | AD34: 887.1666667 | AE34: 887.1666667 | AF34: 985.8233333 | AG34: 985.8233333 | AH34: 985.8233333 | AI34: 985.8233333 | AJ34: 985.8233333 | AK34: 985.8233333 | AL34: 985.8233333 | AM34: 985.8233333 | AN34: 985.8233333 | AO34: 985.8233333 | AP34: 985.8233333 | AQ34: 985.8233333 | AR34: 1015.398033 | AS34: 1015.398033 | AT34: 1015.398033 | AU34: 1015.398033 | AV34: 1015.398033 | AW34: 1015.398033 | AX34: 1015.398033 | AY34: 1015.398033 | AZ34: 1015.398033 | BA34: 1015.398033 | BB34: 1015.398033 | BC34: 1015.398033 | BE34: Total Expense | BF34: 8548.333333 | BG34: 11829.88 | BH34: 12184.7764 | BI34: 12550.31969 | BJ34: 12926.82928 | BK34: 13314.63416 | BL34: 13714.07319 | BM34: 14125.49538 | BN34: 14549.26024 | BO34: 14985.73805
L35: Expense | N35: 0.3662194702
L36: NOI | M36: 1535.333333 | N36: 18424 | P36: -587.5 | Q36: 1535.333333 | R36: 1509.351667 | T36: -587.5 | U36: -587.5 | V36: -587.5 | W36: -587.5 | X36: -587.5 | Y36: -587.5 | Z36: -587.5 | AA36: 1535.333333 | AB36: 1535.333333 | AC36: 1535.333333 | AD36: 1535.333333 | AE36: 1535.333333 | AF36: 1509.351667 | AG36: 1509.351667 | AH36: 1509.351667 | AI36: 1509.351667 | AJ36: 1509.351667 | AK36: 1509.351667 | AL36: 1509.351667 | AM36: 1509.351667 | AN36: 1509.351667 | AO36: 1509.351667 | AP36: 1509.351667 | AQ36: 1509.351667 | AR36: 1552.005717 | AS36: 1552.005717 | AT36: 1552.005717 | AU36: 1552.005717 | AV36: 1552.005717 | AW36: 1552.005717 | AX36: 1552.005717 | AY36: 1552.005717 | AZ36: 1552.005717 | BA36: 1552.005717 | BB36: 1552.005717 | BC36: 1552.005717 | BE36: NOI | BF36: 3564.166667 | BG36: 18112.22 | BH36: 18624.0686 | BI36: 19215.2542 | BJ36: 19791.71182 | BK36: 20385.46318 | BL36: 20997.02707 | BM36: 21626.93789 | BN36: 22275.74602 | BO36: 22944.0184
B37: Optional For Inherited Staggered Leases
B38: Inheriting Leases | E38: Current Rent | F38: Months Left | G38: Proforma Rent | H38: Year 1 Blended | I38: Year 2 Increase | J38: Year 2 Blended
B39: Rent Unit #1 | E39: 1000 | F39: 6 | G39: 1300 | H39: 1150 | I39: 0.03 | J39: 1319.5
B40: Rent Unit #2 | E40: 900 | F40: 8 | G40: 1200 | H40: 1000 | I40: 0.03 | J40: 1212
B41: Rent Unit #3 | H41: 0 | J41: 0
B42: Rent Unit #4 | H42: 0 | J42: 0
B43: Other | H43: 0 | J43: 0
B44: Other | H44: 0 | J44: 0
B45: Other | H45: 0 | J45: 0

Sheet Turnkey Summary (hidden)
B3: Years | C3: 0 | D3: 1 | E3: 2 | F3: 3 | G3: 4 | H3: 5 | I3: 6 | J3: 7 | K3: 8 | L3: 9 | M3: 10
B4: Effective Gross Income | D4: ='Operating Summary'!BF17+'Operating Summary'!BF19 -> 12112.5 | E4: ='Operating Summary'!BG17+'Operating Summary'!BG19 -> 29942.1 | F4: ='Operating Summary'!BH17+'Operating Summary'!BH19 -> 30808.845 | G4: ='Operating Summary'!BI17+'Operating Summary'!BI19 -> 31765.57389 | H4: ='Operating Summary'!BJ17+'Operating Summary'!BJ19 -> 32718.54111 | I4: ='Operating Summary'!BK17+'Operating Summary'!BK19 -> 33700.09734 | J4: ='Operating Summary'!BL17+'Operating Summary'!BL19 -> 34711.10026 | K4: ='Operating Summary'!BM17+'Operating Summary'!BM19 -> 35752.43327 | L4: ='Operating Summary'!BN17+'Operating Summary'!BN19 -> 36825.00627 | M4: ='Operating Summary'!BO17+'Operating Summary'!BO19 -> 37929.75645
B5: Total Expenses | D5: =-'Operating Summary'!BF34 -> -8548.333333 | E5: =-'Operating Summary'!BG34 -> -11829.88 | F5: =-'Operating Summary'!BH34 -> -12184.7764 | G5: =-'Operating Summary'!BI34 -> -12550.31969 | H5: =-'Operating Summary'!BJ34 -> -12926.82928 | I5: =-'Operating Summary'!BK34 -> -13314.63416 | J5: =-'Operating Summary'!BL34 -> -13714.07319 | K5: =-'Operating Summary'!BM34 -> -14125.49538 | L5: =-'Operating Summary'!BN34 -> -14549.26024 | M5: =-'Operating Summary'!BO34 -> -14985.73805
B6: NOI After Reserves: | D6: =SUM(D4:D5) -> 3564.166667 | E6: =SUM(E4:E5) -> 18112.22 | F6: 18624.0686 | G6: 19215.2542 | H6: 19791.71182 | I6: 20385.46318 | J6: 20997.02707 | K6: 21626.93789 | L6: 22275.74602 | M6: 22944.0184
B8: Capital
B9: CAPEX | D9: =SUM('Fix & Flip Summary'!D9:O9) -> -49500
B10: Net Cash Flow | D10: =SUM(D6:D9) -> -45935.83333 | E10: 18112.22 | F10: 18624.0686 | G10: 19215.2542 | H10: 19791.71182 | I10: 20385.46318 | J10: 20997.02707 | K10: 21626.93789 | L10: 22275.74602 | M10: 22944.0184
B12: Permanent Financing
B13: Permanent Loan Principal | D13: =-'Conventional Debt'!L4 ->  | E13: =-'Conventional Debt'!M4 ->  | F13: =-'Conventional Debt'!N4 ->  | G13: =-'Conventional Debt'!O4 ->  | H13: =-'Conventional Debt'!P4 ->  | I13: =-'Conventional Debt'!Q4 ->  | J13: =-'Conventional Debt'!R4 ->  | K13: =-'Conventional Debt'!S4 ->  | L13: =-'Conventional Debt'!T4 ->  | M13: =-'Conventional Debt'!U4 -> 
B14: Permanent Loan Interest | D14: =-'Conventional Debt'!L5 ->  | E14: =-'Conventional Debt'!M5 ->  | F14: =-'Conventional Debt'!N5 ->  | G14: =-'Conventional Debt'!O5 ->  | H14: =-'Conventional Debt'!P5 ->  | I14: =-'Conventional Debt'!Q5 ->  | J14: =-'Conventional Debt'!R5 ->  | K14: =-'Conventional Debt'!S5 ->  | L14: =-'Conventional Debt'!T5 ->  | M14: =-'Conventional Debt'!U5 -> 
B15: Cash Flow After Debt | D15: =SUM(D10:D14) ->  | E15: =SUM(E10:E14) -> 
B16: Stabilized DSCR | D16: =D6/'Conventional Debt'!$D$15 ->  | E16: =E6/'Conventional Debt'!$D$15 ->  | F16: =F6/'Conventional Debt'!$D$15 ->  | G16: =G6/'Conventional Debt'!$D$15 ->  | H16: =H6/'Conventional Debt'!$D$15 ->  | I16: =I6/'Conventional Debt'!$D$15 ->  | J16: =J6/'Conventional Debt'!$D$15 ->  | K16: =K6/'Conventional Debt'!$D$15 ->  | L16: =L6/'Conventional Debt'!$D$15 ->  | M16: =M6/'Conventional Debt'!$D$15 -> 
B18: Purchase/Disposition
B19: Acquisition | C19: =-'Investment Summary'!C5 -> -205000
B20: Escrow/Closing | C20: =-'Investment Summary'!C8 -> -8200
B21: Loan Cost | C21: =-'Investment Summary'!C7 -> -8144
B22: Residual Value | D22: ='Investment Summary'!C5*(1+'Investment Summary'!$F$44) -> 207050 | E22: =D22*(1+'Investment Summary'!$F$44) -> 209120.5 | F22: =E22*(1+'Investment Summary'!$F$44) -> 211211.705 | G22: =F22*(1+'Investment Summary'!$F$44) -> 213323.8221 | H22: =G22*(1+'Investment Summary'!$F$44) -> 215457.0603 | I22: =H22*(1+'Investment Summary'!$F$44) -> 217611.6309 | J22: =I22*(1+'Investment Summary'!$F$44) -> 219787.7472 | K22: =J22*(1+'Investment Summary'!$F$44) -> 221985.6247 | L22: =K22*(1+'Investment Summary'!$F$44) -> 224205.4809 | M22: =L22*(1+'Investment Summary'!$F$44) -> 226447.5357
B23: Cost of Sale | D23: =D22*-'Investment Summary'!$F$43 -> -13458.25 | E23: =E22*-'Investment Summary'!$F$43 -> -13592.8325 | F23: =F22*-'Investment Summary'!$F$43 -> -13728.76083 | G23: =G22*-'Investment Summary'!$F$43 -> -13866.04843 | H23: =H22*-'Investment Summary'!$F$43 -> -14004.70892 | I23: =I22*-'Investment Summary'!$F$43 -> -14144.75601 | J23: =J22*-'Investment Summary'!$F$43 -> -14286.20357 | K23: =K22*-'Investment Summary'!$F$43 -> -14429.0656 | L23: =L22*-'Investment Summary'!$F$43 -> -14573.35626 | M23: =M22*-'Investment Summary'!$F$43 -> -14719.08982
B24: ='Investment Summary'!F15&" Loan Payoff" -> Bank/Agency Loan Payoff | C24: ='Investment Summary'!$C$34 -> 0 | D24: ='Conventional Debt'!L6 ->  | E24: ='Conventional Debt'!M6 ->  | F24: ='Conventional Debt'!N6 ->  | G24: ='Conventional Debt'!O6 ->  | H24: ='Conventional Debt'!P6 ->  | I24: ='Conventional Debt'!Q6 ->  | J24: ='Conventional Debt'!R6 ->  | K24: ='Conventional Debt'!S6 ->  | L24: ='Conventional Debt'!T6 ->  | M24: ='Conventional Debt'!U6 -> 
B25: Net Sale Proceeds | C25: =SUM(C19:C24) -> -221344 | D25: =SUM(D22:D24) -> 
B27: All Cash IRR: | D27: =XIRR(D28:D38,$B$28:$B$38) -> -0.3074300356 | E27: =XIRR(E28:E38,$B$28:$B$38) -> -0.1009181906 | F27: =XIRR(F28:F38,$B$28:$B$38) -> -0.03617175519 | G27: -0.004003682733 | H27: 0.01535699069 | I27: 0.0283837527 | J27: 0.03780464828 | K27: 0.0449616164 | L27: 0.05062688291 | M27: 0.05523670018
B28: ='Fix & Flip Summary'!$C$2 -> 2020-10-01 | C28: 0 | D28: =$C$19+$C$20 -> -213200 | E28: -213200 | F28: -213200 | G28: -213200 | H28: -213200 | I28: -213200 | J28: -213200 | K28: -213200 | L28: -213200 | M28: -213200
B29: =EDATE(B28,12) -> 2021-10-01 | C29: 1 | D29: =D10+SUM(D22:D23) -> 147655.9167 | E29: =$D$10 -> -45935.83333 | F29: =$D$10 -> -45935.83333 | G29: -45935.83333 | H29: -45935.83333 | I29: -45935.83333 | J29: -45935.83333 | K29: -45935.83333 | L29: -45935.83333 | M29: -45935.83333
B30: =EDATE(B29,12) -> 2022-10-01 | C30: 2 | E30: =E$10+SUM(E$22:E$23) -> 213639.8875 | F30: =$E$10 -> 18112.22 | G30: =$E$10 -> 18112.22 | H30: 18112.22 | I30: 18112.22 | J30: 18112.22 | K30: 18112.22 | L30: 18112.22 | M30: 18112.22
B31: 2023-10-01 | C31: 3 | F31: =F$10+SUM(F$22:F$23) -> 216107.0128 | G31: =$F$10 -> 18624.0686 | H31: =$F$10 -> 18624.0686 | I31: 18624.0686 | J31: 18624.0686 | K31: 18624.0686 | L31: 18624.0686 | M31: 18624.0686
B32: 2024-10-01 | C32: 4 | G32: =G$10+SUM(G$22:G$23) -> 218673.0278 | H32: =$G$10 -> 19215.2542 | I32: =$G$10 -> 19215.2542 | J32: 19215.2542 | K32: 19215.2542 | L32: 19215.2542 | M32: 19215.2542
B33: 2025-10-01 | C33: 5 | H33: =H$10+SUM(H$22:H$23) -> 221244.0632 | I33: =$H$10 -> 19791.71182 | J33: =$H$10 -> 19791.71182 | K33: 19791.71182 | L33: 19791.71182 | M33: 19791.71182
B34: 2026-10-01 | C34: 6 | I34: =I$10+SUM(I$22:I$23) -> 223852.338 | J34: =$I$10 -> 20385.46318 | K34: =$I$10 -> 20385.46318 | L34: 20385.46318 | M34: 20385.46318
B35: 2027-10-01 | C35: 7 | J35: =J$10+SUM(J$22:J$23) -> 226498.5707 | K35: =$J$10 -> 20997.02707 | L35: =$J$10 -> 20997.02707 | M35: 20997.02707
B36: 2028-10-01 | C36: 8 | K36: =K$10+SUM(K$22:K$23) -> 229183.4969 | L36: =$K$10 -> 21626.93789 | M36: =$K$10 -> 21626.93789
B37: 2029-10-01 | C37: 9 | L37: =L$10+SUM(L$22:L$23) -> 231907.8707 | M37: =$L$10 -> 22275.74602
B38: 2030-10-01 | C38: 10 | M38: =M$10+SUM(M$22:M$23) -> 234672.4643
B39: Levered IRR: | D39: =IFERROR(XIRR(D40:D50,$B$40:$B$50),"") ->  | E39: =XIRR(E40:E50,$B$40:$B$50) -> 
B40: =B28 -> 2020-10-01 | C40: 0 | D40: =$C$25 -> -221344 | E40: =$C$25 -> -221344 | F40: =$C$25 -> -221344 | G40: -221344 | H40: -221344 | I40: -221344 | J40: -221344 | K40: -221344 | L40: -221344 | M40: -221344
B41: =B29 -> 2021-10-01 | C41: 1 | D41: =D$15+D$25 ->  | E41: =$D$15 ->  | F41: =$D$15 -> 
B42: =B30 -> 2022-10-01 | C42: 2 | E42: =E$15+E$25 ->  | F42: =$E$15 ->  | G42: =$E$15 -> 
B43: 2023-10-01 | C43: 3 | F43: =F$15+F$25 ->  | G43: =$F$15 ->  | H43: =$F$15 -> 
B44: 2024-10-01 | C44: 4 | G44: =G$15+G$25 ->  | H44: =$G$15 ->  | I44: =$G$15 -> 
B45: 2025-10-01 | C45: 5 | H45: =H$15+H$25 ->  | I45: =$H$15 ->  | J45: =$H$15 -> 
B46: 2026-10-01 | C46: 6 | I46: =I$15+I$25 ->  | J46: =$I$15 ->  | K46: =$I$15 -> 
B47: 2027-10-01 | C47: 7 | J47: =J$15+J$25 ->  | K47: =$J$15 ->  | L47: =$J$15 -> 
B48: 2028-10-01 | C48: 8 | K48: =K$15+K$25 ->  | L48: =$K$15 ->  | M48: =$K$15 -> 
B49: 2029-10-01 | C49: 9 | L49: =L$15+L$25 ->  | M49: =$L$15 -> 
B50: 2030-10-01 | C50: 10 | M50: =M$15+M$25 -> 
B51: All Cash Equity Multiple: | D51: =(SUM($D$10:D10)+SUM(D22:D23))/-(SUM($C$19:$C$20)) -> 0.6925699656 | E51: =(SUM($D$10:E10)+SUM(E22:E23))/-(SUM($C$19:$C$20)) -> 0.7866043816 | F51: =(SUM($D$10:F10)+SUM(F22:F23))/-(SUM($C$19:$C$20)) -> 0.8831303914 | G51: =(SUM($D$10:G10)+SUM(G22:G23))/-(SUM($C$19:$C$20)) -> 0.9825210276 | H51: =(SUM($D$10:H10)+SUM(H22:H23))/-(SUM($C$19:$C$20)) -> 1.084708127 | I51: =(SUM($D$10:I10)+SUM(I22:I23))/-(SUM($C$19:$C$20)) -> 1.18977373 | J51: =(SUM($D$10:J10)+SUM(J22:J23))/-(SUM($C$19:$C$20)) -> 1.297802322 | K51: =(SUM($D$10:K10)+SUM(K22:K23))/-(SUM($C$19:$C$20)) -> 1.408880903 | L51: =(SUM($D$10:L10)+SUM(L22:L23))/-(SUM($C$19:$C$20)) -> 1.523099062 | M51: =(SUM($D$10:M10)+SUM(M22:M23))/-(SUM($C$19:$C$20)) -> 1.640549061
B52: Levered Equity Multiple: | D52: =(SUM($D$15:D15)+SUM(D25))/-(SUM($C$25)) ->  | E52: =(SUM($D$15:E15)+SUM(E25))/-(SUM($C$25)) ->  | F52: =(SUM($D$15:F15)+SUM(F25))/-(SUM($C$25)) ->  | G52: =(SUM($D$15:G15)+SUM(G25))/-(SUM($C$25)) ->  | H52: =(SUM($D$15:H15)+SUM(H25))/-(SUM($C$25)) ->  | I52: =(SUM($D$15:I15)+SUM(I25))/-(SUM($C$25)) ->  | J52: =(SUM($D$15:J15)+SUM(J25))/-(SUM($C$25)) ->  | K52: =(SUM($D$15:K15)+SUM(K25))/-(SUM($C$25)) ->  | L52: =(SUM($D$15:L15)+SUM(L25))/-(SUM($C$25)) ->  | M52: =(SUM($D$15:M15)+SUM(M25))/-(SUM($C$25)) -> 
B54: All Cash Return: | D54: =D6/D56 -> 0.01356744068 | E54: =E6/E56 -> 0.06894640274 | F54: 0.07089481766 | G54: 0.07314523867 | H54: 0.07533959583 | I54: 0.0775997837 | J54: 0.07992777721 | K54: 0.08232561053 | L54: 0.08479537885 | M54: 0.08733924021
B55: Levered Cash on Cash Return: | D55: =(D15-D9)/D57 ->  | E55: =(E15-E9)/E57 -> 
B56: All Cash Basis | C56: =-SUM(C19:C20) -> 213200 | D56: =C56-D9 -> 262700 | E56: =D56-E9 -> 262700 | F56: =E56-F9 -> 262700 | G56: 262700 | H56: 262700 | I56: 262700 | J56: 262700 | K56: 262700 | L56: 262700 | M56: 262700
B57: Levered Basis | C57: =-C25 -> 221344 | D57: =C57-D9 -> 270844 | E57: =D57-E9 -> 270844 | F57: 270844 | G57: 270844 | H57: 270844 | I57: 270844 | J57: 270844 | K57: 270844 | L57: 270844 | M57: 270844

Sheet Conventional Debt (hidden)
B1: Loan 1
J2: (1) Free & Clear
C3: Debt Name: | D3: ='Investment Summary'!C32 -> - | F3: I/O (Months): | G3: =IF('Investment Summary'!C39="Yes",'Investment Summary'!C40,0) -> 0 | K3: 0 | L3: 1 | M3: 2 | N3: 3 | O3: 4 | P3: 5 | Q3: 6 | R3: 7 | S3: 8 | T3: 9 | U3: 10
C4: Price: | D4: ='Investment Summary'!C5 -> 205000 | F4: I/O Mon. PMT: | G4: =D7/12*D6 -> 0 | J4: Loan 1 Principal | K4: =G14 -> 0 | L4: =IF(L3*12<=$G$3,0,IF(AND($G$3>K3*12,$G$3<M3*12),SUM(OFFSET($F$57,,,(L3*12)-$G$3+1,)),SUM(OFFSET($F$57,K3*12-$G$3+1,,12,)))) -> 
C5: LTV: | D5: ='Investment Summary'!C33 -> 0 | J5: Loan 1 Interest | L5: =IF(L3*12<=$G$3,$G$4*12,IF(AND($G$3>K3*12,$G$3<M3*12),($G$3-(K3*12))*$G$4+SUM(OFFSET($E$57,,,(L3*12)-$G$3+1,)),SUM(OFFSET($E$57,K3*12-$G$3+1,,12,)))) -> 
C6: Loan Amount: | D6: ='Investment Summary'!C34 -> 0 | J6: Loan 1 Payoff | K6: =-OFFSET($G$14,K3,,,) -> 0 | L6: =IF(L4=0,K6,K6+L4) -> 
C7: Int. Rate: | D7: ='Investment Summary'!C35 -> 0
C8: Term: | D8: ='Investment Summary'!F19 -> 10
C9: Amortization: | D9: ='Investment Summary'!C37 -> 0
C10: Loan Cost: | D10: ='Investment Summary'!F21 -> 0.01
B13: Yr | C13: Beg. Balance | D13: PMT | E13: Interest | F13: Principal | G13: End Balance | H13: PMT Left
B14: 0 | G14: =D6 -> 0 | H14: =D9*12 -> 0
B15: 1 | C15: =G14 -> 0 | D15: =-PMT($D$7/12,$D$9*12,$D$6,,)*12 ->  | E15: =D15-F15 ->  | F15: =C15-G15 ->  | G15: =-PV($D$7/12,H15,D15/12) ->  | H15: =H14-12 -> -12
B16: 2 | H16: -24
B17: 3 | H17: -36
B18: 4 | H18: -48
B19: 5 | H19: -60
B20: 6 | H20: -72
B21: 7 | H21: -84
B22: 8 | H22: -96
B23: 9 | H23: -108
B24: 10 | H24: -120
B25: 11 | H25: -132
B26: 12 | H26: -144
B27: 13 | H27: -156
B28: 14 | H28: -168
B29: 15 | H29: -180
B30: 16 | H30: -192
B31: 17 | H31: -204
B32: 18 | H32: -216
B33: 19 | H33: -228
B34: 20 | H34: -240
B35: 21 | H35: -252
B36: 22 | H36: -264
B37: 23 | H37: -276
B38: 24 | H38: -288
B39: 25 | H39: -300
B40: 26 | H40: -312
B41: 27 | H41: -324
B42: 28 | H42: -336
B43: 29 | H43: -348
B44: 30 | H44: -360
B45: 31 | H45: -372
B46: 32 | H46: -384
B47: 33 | H47: -396
B48: 34 | H48: -408
B49: 35 | H49: -420
B50: 36 | H50: -432
B51: 37 | H51: -444
B52: 38 | H52: -456
B53: 39 | H53: -468
B54: 40 | H54: -480
B56: Month | C56: Beg. Balance | D56: PMT | E56: Interest | F56: Principal | G56: End Balance
B57: 0 | G57: =$D$6 -> 0
B58: 1 | C58: =G57 -> 0 | D58: =-PMT($D$7/12,$D$9*12,$D$6,,) ->  | E58: =C58*$D$7/12 -> 0 | F58: =D58-E58 ->  | G58: =C58-F58 -> 
B59: 2
B60: 3
B61: 4
B62: 5
B63: 6
B64: 7
B65: 8
B66: 9
B67: 10
B68: 11
B69: 12
B70: 13
B71: 14
B72: 15
B73: 16
B74: 17
B75: 18
B76: 19
B77: 20
B78: 21
B79: 22
B80: 23
B81: 24
B82: 25
B83: 26
B84: 27
B85: 28
B86: 29
B87: 30
B88: 31
B89: 32
B90: 33
B91: 34
B92: 35
B93: 36
B94: 37
B95: 38
B96: 39
B97: 40
B98: 41
B99: 42
B100: 43
B101: 44
B102: 45
B103: 46
B104: 47
B105: 48
B106: 49
B107: 50
B108: 51
B109: 52
B110: 53
B111: 54
B112: 55
B113: 56
B114: 57
B115: 58
B116: 59
B117: 60
B118: 61
B119: 62
B120: 63
B121: 64
B122: 65 | C122: =G121 ->  | D122: =-PMT($D$7/12,$D$9*12,$D$6,,) ->  | E122: =C122*$D$7/12 ->  | F122: =D122-E122 ->  | G122: =C122-F122 -> 
B123: 66
B124: 67
B125: 68
B126: 69
B127: 70
B128: 71
B129: 72
B130: 73
B131: 74
B132: 75
B133: 76
B134: 77
B135: 78
B136: 79
B137: 80
B138: 81
B139: 82
B140: 83
B141: 84
B142: 85
B143: 86
B144: 87
B145: 88
B146: 89
B147: 90
B148: 91
B149: 92
B150: 93
B151: 94
B152: 95
B153: 96
B154: 97
B155: 98
B156: 99
B157: 100
B158: 101
B159: 102
B160: 103
B161: 104
B162: 105
B163: 106
B164: 107
B165: 108
B166: 109
B167: 110
B168: 111
B169: 112
B170: 113
B171: 114
B172: 115
B173: 116
B174: 117
B175: 118
B176: 119
B177: 120
B178: 121
B179: 122
B180: 123
B181: 124
B182: 125
B183: 126
B184: 127
B185: 128
B186: 129 | C186: =G185 ->  | D186: =-PMT($D$7/12,$D$9*12,$D$6,,) ->  | E186: =C186*$D$7/12 ->  | F186: =D186-E186 ->  | G186: =C186-F186 -> 
B187: 130
B188: 131
B189: 132
B190: 133
B191: 134
B192: 135
B193: 136
B194: 137
B195: 138
B196: 139
B197: 140
B198: 141
B199: 142
B200: 143
B201: 144
B202: 145
B203: 146
... 334 more rows

Sheet Fix & Flip Summary
C2: 2020-10-01 | D2: 2020-11-01 | E2: 2020-12-01 | F2: 2021-01-01 | G2: 2021-02-01 | H2: 2021-03-01 | I2: 2021-04-01 | J2: 2021-05-01 | K2: 2021-06-01 | L2: 2021-07-01 | M2: 2021-08-01 | N2: 2021-09-01 | O2: 2021-10-01 | Q2: Sale Month: | R2: 7
B3: Months | C3: 0 | D3: 1 | E3: 2 | F3: 3 | G3: 4 | H3: 5 | I3: 6 | J3: 7 | K3: 8 | L3: 9 | M3: 10 | N3: 11 | O3: 12
B4: Effective Gross Income | D4: 0 | E4: 0 | F4: 0 | G4: 0 | H4: 0 | I4: 0 | J4: 0 | K4: 0 | L4: 0 | M4: 0 | N4: 0 | O4: 0
B5: Total Expenses | D5: -587.5 | E5: -587.5 | F5: -587.5 | G5: -587.5 | H5: -587.5 | I5: -587.5 | J5: -587.5 | K5: 0 | L5: 0 | M5: 0 | N5: 0 | O5: 0
B6: NOI After Reserves | D6: -587.5 | E6: -587.5 | F6: -587.5 | G6: -587.5 | H6: -587.5 | I6: -587.5 | J6: -587.5 | K6: 0 | L6: 0 | M6: 0 | N6: 0 | O6: 0
B8: Capital
B9: Rehab | D9: -4000 | E9: -17000 | F9: -7000 | G9: -3500 | H9: -10000 | I9: -8000 | J9: 0 | K9: 0 | L9: 0 | M9: 0 | N9: 0 | O9: 0
B10: Loan Draws | D10: 4000 | E10: 17000 | F10: 7000 | G10: 3500 | H10: 10000 | I10: 8000 | J10: 0 | K10: 0 | L10: 0 | M10: 0 | N10: 0 | O10: 0
B11: Draw Fees | D11: 0 | E11: -250 | F11: 0 | G11: -250 | H11: 0 | I11: -250 | J11: 0 | K11: 0 | L11: 0 | M11: 0 | N11: 0 | O11: 0
B12: Interest Expense | D12: -706.2916667 | E12: -706.2916667 | F12: -802.5416667 | G12: -802.5416667 | H12: -850.6666667 | I12: -850.6666667 | J12: -933.1666667 | K12: 0 | L12: 0 | M12: 0 | N12: 0 | O12: 0
B13: Net Cash Flow | D13: -1293.791667 | E13: -1543.791667 | F13: -1390.041667 | G13: -1640.041667 | H13: -1438.166667 | I13: -1688.166667 | J13: -1520.666667 | K13: 0 | L13: 0 | M13: 0 | N13: 0 | O13: 0
B15: Purchase/Disposition
B16: Acquisition | C16: -205000
B17: Escrow/Closing | C17: -8200
B18: Financing Cost | C18: -8144
B19: ARV | D19: 0 | E19: 0 | F19: 0 | G19: 0 | H19: 0 | I19: 0 | J19: 325000 | K19: 0 | L19: 0 | M19: 0 | N19: 0 | O19: 0
B20: Cost of Sale | D20: 0 | E20: 0 | F20: 0 | G20: 0 | H20: 0 | I20: 0 | J20: -21125 | K20: 0 | L20: 0 | M20: 0 | N20: 0 | O20: 0
B21: Loan Payoff | C21: 154100 | D21: -158100 | E21: -175100 | F21: -182100 | G21: -185600 | H21: -195600 | I21: -203600 | J21: -203600 | K21: 0 | L21: 0 | M21: 0 | N21: 0 | O21: 0
B22: Net Sale Proceeds | C22: -67244 | D22: 0 | E22: 0 | F22: 0 | G22: 0 | H22: 0 | I22: 0 | J22: 100275 | K22: 0 | L22: 0 | M22: 0 | N22: 0 | O22: 0
B24: Levered XIRR: | C24: 0.6036294639 | E24: Levered Equity Multiple: | G24: 1.33484524 | I24: Levered Profit: | K24: 22516.33333
B25: All Cash XIRR: | C25: 0.2815047801 | E25: All Cash Equity Multiple: | G25: 1.173839118 | I25: All Cash Profit: | K25: 37062.5
B30: To see IRR cash flows click "+"
B31: Date | C31: Month | D31: Lev. CF | E31: All Cash CF
B32: 2020-10-01 | C32: 0 | D32: -67244 | E32: -213200
B33: 2020-11-01 | C33: 1 | D33: -1293.791667 | E33: -4587.5
B34: 2020-12-01 | C34: 2 | D34: -1543.791667 | E34: -17587.5
B35: 2021-01-01 | C35: 3 | D35: -1390.041667 | E35: -7587.5
B36: 2021-02-01 | C36: 4 | D36: -1640.041667 | E36: -4087.5
B37: 2021-03-01 | C37: 5 | D37: -1438.166667 | E37: -10587.5
B38: 2021-04-01 | C38: 6 | D38: -1688.166667 | E38: -8587.5
B39: 2021-05-01 | C39: 7 | D39: 98754.33333 | E39: 303287.5
B40: 2021-06-01 | C40: 8 | D40: 0 | E40: 0
B41: 2021-07-01 | C41: 9 | D41: 0 | E41: 0
B42: 2021-08-01 | C42: 10 | D42: 0 | E42: 0
B43: 2021-09-01 | C43: 11 | D43: 0 | E43: 0
B44: 2021-10-01 | C44: 12 | D44: 0 | E44: 0

Sheet Fix & Hold Summary
O2: Refi Month: | P2: 8
B3: Years | C3: 0 | D3: 1 | E3: 2 | F3: 3 | G3: 4 | H3: 5 | I3: 6 | J3: 7 | K3: 8 | L3: 9 | M3: 10
B4: Effective Gross Income | D4: 12112.5 | E4: 29942.1 | F4: 30808.845 | G4: 31765.57389 | H4: 32718.54111 | I4: 33700.09734 | J4: 34711.10026 | K4: 35752.43327 | L4: 36825.00627 | M4: 37929.75645
B5: Total Expenses | D5: -8548.333333 | E5: -11829.88 | F5: -12184.7764 | G5: -12550.31969 | H5: -12926.82928 | I5: -13314.63416 | J5: -13714.07319 | K5: -14125.49538 | L5: -14549.26024 | M5: -14985.73805
B6: NOI After Reserves: | D6: 3564.166667 | E6: 18112.22 | F6: 18624.0686 | G6: 19215.2542 | H6: 19791.71182 | I6: 20385.46318 | J6: 20997.02707 | K6: 21626.93789 | L6: 22275.74602 | M6: 22944.0184
B8: Capital
B9: Rehab | D9: -49500
B10: Loan Draws | D10: 49500
B11: Draw Fees | D11: -750
B12: Interest Expense | D12: -6585.333333 | E12: 0
B13: Net Cash Flow | D13: -3771.166667 | E13: 18112.22 | F13: 18624.0686 | G13: 19215.2542 | H13: 19791.71182 | I13: 20385.46318 | J13: 20997.02707 | K13: 21626.93789 | L13: 22275.74602 | M13: 22944.0184
B15: Permanent Financing
B16: Permanent Loan Principal | D16: -1970.278509 | E16: -4855.990014 | F16: -5041.25231 | G16: -5233.582602 | H16: -5433.250543 | I16: -5640.536074 | J16: -5855.729816 | K16: -6079.133477 | L16: -6311.060277 | M16: -6551.835384
B17: Permanent Loan Interest | D17: -4050.224181 | E17: -9593.216443 | F17: -9407.954147 | G17: -9215.623855 | H17: -9015.955914 | I17: -8808.670383 | J17: -8593.476641 | K17: -8370.07298 | L17: -8138.14618 | M17: -7897.371073
B18: Cash Flow After Debt | D18: -9791.669357 | E18: 3663.013543 | F18: 4174.862143 | G18: 4766.047741 | H18: 5342.505367 | I18: 5936.256722 | J18: 6547.820617 | K18: 7177.731429 | L18: 7826.539566 | M18: 8494.811946
B19: Stabilized DSCR | E19: 1.253509669 | F19: 1.288933663 | G19: 1.329848408 | H19: 1.36974386 | I19: 1.410836176 | J19: 1.453161261 | K19: 1.496756099 | L19: 1.541658782 | M19: 1.587908545
B21: Refinance
B22: Permanent Loan Proceeds | D22: 260000 | E22: 0
B23: HML Balance | D23: -203600 | E23: 0
B24: Stabilized Loan Cost | D24: -2600 | E24: 0
B25: Total Refinance Proceeds | D25: 53800 | E25: 0 | F25: 0 | G25: 0 | H25: 0 | I25: 0 | J25: 0 | K25: 0 | L25: 0 | M25: 0
B27: Total Project Distributions | D27: 44008.33064 | E27: 3663.013543 | F27: 4174.862143 | G27: 4766.047741 | H27: 5342.505367 | I27: 5936.256722 | J27: 6547.820617 | K27: 7177.731429 | L27: 7826.539566 | M27: 8494.811946
B29: Purchase/Disposition
B30: Acquisition | C30: -205000
B31: Escrow/Closing | C31: -8200
B32: HML Cost | C32: -8144
B33: HML Proceeds | C33: 154100 | D33: -203600
B34: Residual Value | D34: 325000 | E34: 328250 | F34: 331532.5 | G34: 334847.825 | H34: 338196.3032 | I34: 341578.2663 | J34: 344994.0489 | K34: 348443.9894 | L34: 351928.4293 | M34: 355447.7136
B35: Cost of Sale | D35: -21125 | E35: -21336.25 | F35: -21549.6125 | G35: -21765.10863 | H35: -21982.75971 | I35: -22202.58731 | J35: -22424.61318 | K35: -22648.85931 | L35: -22875.34791 | M35: -23104.10139
B36: Bank/Agency Loan Payoff | D36: -258029.7215 | E36: -253173.7315 | F36: -248132.4792 | G36: -242898.8966 | H36: -237465.646 | I36: -231825.1099 | J36: -225969.3801 | K36: -219890.2467 | L36: -213579.1864 | M36: -207027.351
B37: Net Sale Proceeds | C37: -67244 | D37: -157754.7215 | E37: 53740.01852 | F37: 61850.40833 | G37: 70183.81981 | H37: 78747.89752 | I37: 87550.56903 | J37: 96600.05563 | K37: 105904.8835 | L37: 115473.895 | M37: 125316.2612
B39: All Cash IRR: | D39: 0.2815047801 | E39: 0.1316727102 | F39: 0.1106133282 | G39: 0.1010648429 | H39: 0.09584750831 | I39: 0.09264947474 | J39: 0.09056990445 | K39: 0.08914650977 | L39: 0.08819724023 | M39: 0.08755281866
B40: 2020-10-01 | C40: 0 | D40: See Fix & | E40: -213200 | F40: -213200 | G40: -213200 | H40: -213200 | I40: -213200 | J40: -213200 | K40: -213200 | L40: -213200 | M40: -213200
B41: 2021-10-01 | C41: 1 | D41: Flip | E41: -45935.83333 | F41: -45935.83333 | G41: -45935.83333 | H41: -45935.83333 | I41: -45935.83333 | J41: -45935.83333 | K41: -45935.83333 | L41: -45935.83333 | M41: -45935.83333
B42: 2022-10-01 | C42: 2 | E42: 325025.97 | F42: 18112.22 | G42: 18112.22 | H42: 18112.22 | I42: 18112.22 | J42: 18112.22 | K42: 18112.22 | L42: 18112.22 | M42: 18112.22
B43: 2023-10-01 | C43: 3 | F43: 328606.9561 | G43: 18624.0686 | H43: 18624.0686 | I43: 18624.0686 | J43: 18624.0686 | K43: 18624.0686 | L43: 18624.0686 | M43: 18624.0686
B44: 2024-10-01 | C44: 4 | G44: 332297.9706 | H44: 19215.2542 | I44: 19215.2542 | J44: 19215.2542 | K44: 19215.2542 | L44: 19215.2542 | M44: 19215.2542
B45: 2025-10-01 | C45: 5 | H45: 336005.2554 | I45: 19791.71182 | J45: 19791.71182 | K45: 19791.71182 | L45: 19791.71182 | M45: 19791.71182
B46: 2026-10-01 | C46: 6 | I46: 339761.1422 | J46: 20385.46318 | K46: 20385.46318 | L46: 20385.46318 | M46: 20385.46318
B47: 2027-10-01 | C47: 7 | J47: 343566.4628 | K47: 20997.02707 | L47: 20997.02707 | M47: 20997.02707
B48: 2028-10-01 | C48: 8 | K48: 347422.068 | L48: 21626.93789 | M48: 21626.93789
B49: 2029-10-01 | C49: 9 | L49: 351328.8274 | M49: 22275.74602
B50: 2030-10-01 | C50: 10 | M50: 355287.6306
B51: Levered IRR: | D51: 0.6036294639 | E51: 0.3670434654 | F51: 0.3303089201 | G51: 0.3066177666 | H51: 0.2897141635 | I51: 0.2767393291 | J51: 0.2663837373 | K51: 0.2578309476 | L51: 0.2507532299 | M51: 0.2447601378
B52: 2020-10-01 | C52: 0 | D52: See Fix & | E52: -67244 | F52: -67244 | G52: -67244 | H52: -67244 | I52: -67244 | J52: -67244 | K52: -67244 | L52: -67244 | M52: -67244
B53: 2021-10-01 | C53: 1 | D53: Flip | E53: -9791.669357 | F53: -9791.669357 | G53: -9791.669357 | H53: -9791.669357 | I53: -9791.669357 | J53: -9791.669357 | K53: -9791.669357 | L53: -9791.669357 | M53: -9791.669357
B54: 2022-10-01 | C54: 2 | E54: 57403.03207 | F54: 3663.013543 | G54: 3663.013543 | H54: 3663.013543 | I54: 3663.013543 | J54: 3663.013543 | K54: 3663.013543 | L54: 3663.013543 | M54: 3663.013543
B55: 2023-10-01 | C55: 3 | F55: 66025.27048 | G55: 4174.862143 | H55: 4174.862143 | I55: 4174.862143 | J55: 4174.862143 | K55: 4174.862143 | L55: 4174.862143 | M55: 4174.862143
B56: 2024-10-01 | C56: 4 | G56: 74949.86755 | H56: 4766.047741 | I56: 4766.047741 | J56: 4766.047741 | K56: 4766.047741 | L56: 4766.047741 | M56: 4766.047741
B57: 2025-10-01 | C57: 5 | H57: 84090.40288 | I57: 5342.505367 | J57: 5342.505367 | K57: 5342.505367 | L57: 5342.505367 | M57: 5342.505367
B58: 2026-10-01 | C58: 6 | I58: 93486.82575 | J58: 5936.256722 | K58: 5936.256722 | L58: 5936.256722 | M58: 5936.256722
B59: 2027-10-01 | C59: 7 | J59: 103147.8762 | K59: 6547.820617 | L59: 6547.820617 | M59: 6547.820617
B60: 2028-10-01 | C60: 8 | K60: 113082.6149 | L60: 7177.731429 | M60: 7177.731429
B61: 2029-10-01 | C61: 9 | L61: 123300.4346 | M61: 7826.539566
B62: 2030-10-01 | C62: 10 | M62: 133811.0732
B63: 2021-06-01 | C63: Refi | E63: 53800 | F63: 53800 | G63: 53800 | H63: 53800 | I63: 53800 | J63: 53800 | K63: 53800 | L63: 53800 | M63: 53800
B64: All Cash Equity Multiple: | D64: 1.173839118 | E64: 1.541229534 | F64: 1.642980032 | G64: 1.747647401 | H64: 1.855164 | I64: 1.965612399 | J64: 2.079077614 | K64: 2.195647184 | L64: 2.315411242 | M64: 2.438462599
B65: Levered Equity Multiple: | D65: 1.33484524 | E65: 1.508110206 | F65: 1.690806833 | G65: 1.885611711 | H65: 2.092419501 | I65: 2.311605276 | J65: 2.54355619 | K65: 2.788671877 | L65: 3.047364863 | M65: 3.320060986
B67: All Cash Return: | E67: 0.06894640274 | F67: 0.07089481766 | G67: 0.07314523867 | H67: 0.07533959583 | I67: 0.0775997837 | J67: 0.07992777721 | K67: 0.08232561053 | L67: 0.08479537885 | M67: 0.08733924021
B68: Levered Cash on Cash Return: | E68: 0.2724645599 | F68: 0.3105372019 | G68: 0.3545111381 | H68: 0.3973895691 | I68: 0.441554353 | J68: 0.4870440804 | K68: 0.5338984996 | L68: 0.5821585515 | M68: 0.6318664048
B69: All Cash Basis | C69: 262700
B70: Levered Basis | C70: 13444

Sheet Refi Debt
A1: Refinance Loan
K2: 1 | L2: 2 | M2: 3 | N2: 4 | O2: 5 | P2: 6 | Q2: 7 | R2: 8 | S2: 9 | T2: 10 | Y2: Data Validation
B3: Debt Name: | C3: Bank/Agency | E3: Year 1 Months: | F3: 5 | J3: 0 | K3: 12 | L3: 24 | M3: 36 | N3: 48 | O3: 60 | P3: 72 | Q3: 84 | R3: 96 | S3: 108 | T3: 120
B4: Price: | C4: 325000 | I4: Loan 1 Principal | J4: 260000 | K4: 1970.278509 | L4: 4855.990014 | M4: 5041.25231 | N4: 5233.582602 | O4: 5433.250543 | P4: 5640.536074 | Q4: 5855.729816 | R4: 6079.133477 | S4: 6311.060277 | T4: 6551.835384 | Y4: 1
B5: LTV: | C5: 0.8 | E5: I/O Mon.PMT: | F5: 812.5 | I5: I/O Months | K5: 0 | L5: 0 | M5: 0 | N5: 0 | O5: 0 | P5: 0 | Q5: 0 | R5: 0 | S5: 0 | T5: 0
B6: Loan Amount: | C6: 260000 | E6: I/O (Months): | F6: 0 | I6: Loan 1 Interest | K6: 4050.224181 | L6: 9593.216443 | M6: 9407.954147 | N6: 9215.623855 | O6: 9015.955914 | P6: 8808.670383 | Q6: 8593.476641 | R6: 8370.07298 | S6: 8138.14618 | T6: 7897.371073
B7: Int. Rate: | C7: 0.0375 | E7: Last I/O Month: | I7: Loan 1 Payoff | J7: -260000 | K7: -258029.7215 | L7: -253173.7315 | M7: -248132.4792 | N7: -242898.8966 | O7: -237465.646 | P7: -231825.1099 | Q7: -225969.3801 | R7: -219890.2467 | S7: -213579.1864 | T7: -207027.351
B8: Term: | C8: 10
B9: Amortization: | C9: 30
B10: Loan Cost: | C10: 0.01
B11: Month Start | C11: 8
A13: Yr | B13: Beg. Balance | C13: PMT | D13: Interest | E13: Principal | F13: End Balance | G13: PMT Left
A14: 0 | F14: 260000 | G14: 360
A15: 1 | B15: 260000 | C15: 14449.20646 | D15: 9668.385114 | E15: 4780.821343 | F15: 255219.1787 | G15: 348
A16: 2 | B16: 255219.1787 | C16: 14449.20646 | D16: 9485.990601 | E16: 4963.215856 | F16: 250255.9628 | G16: 336
A17: 3 | B17: 250255.9628 | C17: 14449.20646 | D17: 9296.637501 | E17: 5152.568956 | F17: 245103.3938 | G17: 324
A18: 4 | B18: 245103.3938 | C18: 14449.20646 | D18: 9100.060335 | E18: 5349.146122 | F18: 239754.2477 | G18: 312
A19: 5 | B19: 239754.2477 | C19: 14449.20646 | D19: 8895.983496 | E19: 5553.222961 | F19: 234201.0248 | G19: 300
A20: 6 | B20: 234201.0248 | C20: 14449.20646 | D20: 8684.120862 | E20: 5765.085595 | F20: 228435.9392 | G20: 288
A21: 7 | B21: 228435.9392 | C21: 14449.20646 | D21: 8464.175395 | E21: 5985.031062 | F21: 222450.9081 | G21: 276
A22: 8 | B22: 222450.9081 | C22: 14449.20646 | D22: 8235.838724 | E22: 6213.367733 | F22: 216237.5404 | G22: 264
A23: 9 | B23: 216237.5404 | C23: 14449.20646 | D23: 7998.790714 | E23: 6450.415743 | F23: 209787.1246 | G23: 252
A24: 10 | B24: 209787.1246 | C24: 14449.20646 | D24: 7752.699016 | E24: 6696.507441 | F24: 203090.6172 | G24: 240
A25: 11 | B25: 203090.6172 | C25: 14449.20646 | D25: 7497.218601 | E25: 6951.987856 | F25: 196138.6293 | G25: 228
A26: 12 | B26: 196138.6293 | C26: 14449.20646 | D26: 7231.991279 | E26: 7217.215178 | F26: 188921.4142 | G26: 216
A27: 13 | B27: 188921.4142 | C27: 14449.20646 | D27: 6956.645191 | E27: 7492.561266 | F27: 181428.8529 | G27: 204
A28: 14 | B28: 181428.8529 | C28: 14449.20646 | D28: 6670.794294 | E28: 7778.412163 | F28: 173650.4407 | G28: 192
A29: 15 | B29: 173650.4407 | C29: 14449.20646 | D29: 6374.037816 | E29: 8075.168641 | F29: 165575.2721 | G29: 180
A30: 16 | B30: 165575.2721 | C30: 14449.20646 | D30: 6065.959695 | E30: 8383.246762 | F30: 157192.0253 | G30: 168
A31: 17 | B31: 157192.0253 | C31: 14449.20646 | D31: 5746.127995 | E31: 8703.078462 | F31: 148488.9469 | G31: 156
A32: 18 | B32: 148488.9469 | C32: 14449.20646 | D32: 5414.094302 | E32: 9035.112155 | F32: 139453.8347 | G32: 144
A33: 19 | B33: 139453.8347 | C33: 14449.20646 | D33: 5069.393095 | E33: 9379.813362 | F33: 130074.0213 | G33: 132
A34: 20 | B34: 130074.0213 | C34: 14449.20646 | D34: 4711.541091 | E34: 9737.665366 | F34: 120336.356 | G34: 120
A35: 21 | B35: 120336.356 | C35: 14449.20646 | D35: 4340.036571 | E35: 10109.16989 | F35: 110227.1861 | G35: 108
A36: 22 | B36: 110227.1861 | C36: 14449.20646 | D36: 3954.358673 | E36: 10494.84778 | F36: 99732.33831 | G36: 96
A37: 23 | B37: 99732.33831 | C37: 14449.20646 | D37: 3553.966665 | E37: 10895.23979 | F37: 88837.09852 | G37: 84
A38: 24 | B38: 88837.09852 | C38: 14449.20646 | D38: 3138.299184 | E38: 11310.90727 | F38: 77526.19124 | G38: 72
A39: 25 | B39: 77526.19124 | C39: 14449.20646 | D39: 2706.773452 | E39: 11742.43301 | F39: 65783.75824 | G39: 60
A40: 26 | B40: 65783.75824 | C40: 14449.20646 | D40: 2258.784455 | E40: 12190.422 | F40: 53593.33624 | G40: 48
A41: 27 | B41: 53593.33624 | C41: 14449.20646 | D41: 1793.704099 | E41: 12655.50236 | F41: 40937.83388 | G41: 36
A42: 28 | B42: 40937.83388 | C42: 14449.20646 | D42: 1310.880326 | E42: 13138.32613 | F42: 27799.50775 | G42: 24
A43: 29 | B43: 27799.50775 | C43: 14449.20646 | D43: 809.6362017 | E43: 13639.57026 | F43: 14159.93749 | G43: 12
A44: 30 | B44: 14159.93749 | C44: 14449.20646 | D44: 289.2689665 | E44: 14159.93749 | F44: 0 | G44: 0
A45: 31 | B45: 0 | C45: 14449.20646 | D45: -250.9509514 | E45: 14700.15741 | F45: -14700.15741 | G45: -12
A46: 32 | B46: -14700.15741 | C46: 14449.20646 | D46: -811.7809574 | E46: 15260.98741 | F46: -29961.14482 | G46: -24
A47: 33 | B47: -29961.14482 | C47: 14449.20646 | D47: -1394.007353 | E47: 15843.21381 | F47: -45804.35863 | G47: -36
A48: 34 | B48: -45804.35863 | C48: 14449.20646 | D48: -1998.446438 | E48: 16447.6529 | F48: -62252.01153 | G48: -48
A49: 35 | B49: -62252.01153 | C49: 14449.20646 | D49: -2625.945656 | E49: 17075.15211 | F49: -79327.16364 | G49: -60
A50: 36 | B50: -79327.16364 | C50: 14449.20646 | D50: -3277.384779 | E50: 17726.59124 | F50: -97053.75488 | G50: -72
A51: 37 | B51: -97053.75488 | C51: 14449.20646 | D51: -3953.677148 | E51: 18402.8836 | F51: -115456.6385 | G51: -84
A52: 38 | B52: -115456.6385 | C52: 14449.20646 | D52: -4655.770944 | E52: 19104.9774 | F52: -134561.6159 | G52: -96
A53: 39 | B53: -134561.6159 | C53: 14449.20646 | D53: -5384.650526 | E53: 19833.85698 | F53: -154395.4729 | G53: -108
A54: 40 | B54: -154395.4729 | C54: 14449.20646 | D54: -6141.337807 | E54: 20590.54426 | F54: -174986.0171 | G54: -120
I55: Specific Amortization
A56: Month | B56: Beg. Balance | C56: PMT | D56: Interest | E56: Principal | F56: End Balance | I56: Month | J56: Beg. Balance | K56: PMT | L56: Interest | M56: Principal | N56: End Balance
A57: 0 | F57: 260000 | I57: 0 | N57: 260000
A58: 1 | B58: 260000 | C58: 1204.100538 | D58: 812.5 | E58: 391.6005381 | F58: 259608.3995 | I58: 8 | J58: 260000 | K58: 1204.100538 | L58: 812.5 | M58: 391.6005381 | N58: 259608.3995
A59: 2 | B59: 259608.3995 | C59: 1204.100538 | D59: 811.2762483 | E59: 392.8242898 | F59: 259215.5752 | I59: 9 | J59: 259608.3995 | K59: 1204.100538 | L59: 811.2762483 | M59: 392.8242898 | N59: 259215.5752
A60: 3 | B60: 259215.5752 | C60: 1204.100538 | D60: 810.0486724 | E60: 394.0518657 | F60: 258821.5233 | I60: 10 | J60: 259215.5752 | K60: 1204.100538 | L60: 810.0486724 | M60: 394.0518657 | N60: 258821.5233
A61: 4 | B61: 258821.5233 | C61: 1204.100538 | D61: 808.8172603 | E61: 395.2832778 | F61: 258426.24 | I61: 11 | J61: 258821.5233 | K61: 1204.100538 | L61: 808.8172603 | M61: 395.2832778 | N61: 258426.24
A62: 5 | B62: 258426.24 | C62: 1204.100538 | D62: 807.5820001 | E62: 396.518538 | F62: 258029.7215 | I62: 12 | J62: 258426.24 | K62: 1204.100538 | L62: 807.5820001 | M62: 396.518538 | N62: 258029.7215
A63: 6 | B63: 258029.7215 | C63: 1204.100538 | D63: 806.3428797 | E63: 397.7576584 | F63: 257631.9638 | I63: 13 | J63: 258029.7215 | K63: 1204.100538 | L63: 806.3428797 | M63: 397.7576584 | N63: 257631.9638
A64: 7 | B64: 257631.9638 | C64: 1204.100538 | D64: 805.099887 | E64: 399.0006511 | F64: 257232.9632 | I64: 14 | J64: 257631.9638 | K64: 1204.100538 | L64: 805.099887 | M64: 399.0006511 | N64: 257232.9632
A65: 8 | B65: 257232.9632 | C65: 1204.100538 | D65: 803.8530099 | E65: 400.2475281 | F65: 256832.7157 | I65: 15 | J65: 257232.9632 | K65: 1204.100538 | L65: 803.8530099 | M65: 400.2475281 | N65: 256832.7157
A66: 9 | B66: 256832.7157 | C66: 1204.100538 | D66: 802.6022364 | E66: 401.4983017 | F66: 256431.2174 | I66: 16 | J66: 256832.7157 | K66: 1204.100538 | L66: 802.6022364 | M66: 401.4983017 | N66: 256431.2174
A67: 10 | B67: 256431.2174 | C67: 1204.100538 | D67: 801.3475542 | E67: 402.7529839 | F67: 256028.4644 | I67: 17 | J67: 256431.2174 | K67: 1204.100538 | L67: 801.3475542 | M67: 402.7529839 | N67: 256028.4644
A68: 11 | B68: 256028.4644 | C68: 1204.100538 | D68: 800.0889511 | E68: 404.0115869 | F68: 255624.4528 | I68: 18 | J68: 256028.4644 | K68: 1204.100538 | L68: 800.0889511 | M68: 404.0115869 | N68: 255624.4528
A69: 12 | B69: 255624.4528 | C69: 1204.100538 | D69: 798.8264149 | E69: 405.2741231 | F69: 255219.1787 | I69: 19 | J69: 255624.4528 | K69: 1204.100538 | L69: 798.8264149 | M69: 405.2741231 | N69: 255219.1787
A70: 13 | B70: 255219.1787 | C70: 1204.100538 | D70: 797.5599333 | E70: 406.5406048 | F70: 254812.6381 | I70: 20 | J70: 255219.1787 | K70: 1204.100538 | L70: 797.5599333 | M70: 406.5406048 | N70: 254812.6381
A71: 14 | B71: 254812.6381 | C71: 1204.100538 | D71: 796.2894939 | E71: 407.8110442 | F71: 254404.827 | I71: 21 | J71: 254812.6381 | K71: 1204.100538 | L71: 796.2894939 | M71: 407.8110442 | N71: 254404.827
A72: 15 | B72: 254404.827 | C72: 1204.100538 | D72: 795.0150844 | E72: 409.0854537 | F72: 253995.7416 | I72: 22 | J72: 254404.827 | K72: 1204.100538 | L72: 795.0150844 | M72: 409.0854537 | N72: 253995.7416
A73: 16 | B73: 253995.7416 | C73: 1204.100538 | D73: 793.7366924 | E73: 410.3638457 | F73: 253585.3777 | I73: 23 | J73: 253995.7416 | K73: 1204.100538 | L73: 793.7366924 | M73: 410.3638457 | N73: 253585.3777
A74: 17 | B74: 253585.3777 | C74: 1204.100538 | D74: 792.4543053 | E74: 411.6462327 | F74: 253173.7315 | I74: 24 | J74: 253585.3777 | K74: 1204.100538 | L74: 792.4543053 | M74: 411.6462327 | N74: 253173.7315
A75: 18 | B75: 253173.7315 | C75: 1204.100538 | D75: 791.1679109 | E75: 412.9326272 | F75: 252760.7988 | I75: 25 | J75: 253173.7315 | K75: 1204.100538 | L75: 791.1679109 | M75: 412.9326272 | N75: 252760.7988
A76: 19 | B76: 252760.7988 | C76: 1204.100538 | D76: 789.8774964 | E76: 414.2230417 | F76: 252346.5758 | I76: 26 | J76: 252760.7988 | K76: 1204.100538 | L76: 789.8774964 | M76: 414.2230417 | N76: 252346.5758
A77: 20 | B77: 252346.5758 | C77: 1204.100538 | D77: 788.5830494 | E77: 415.5174887 | F77: 251931.0583 | I77: 27 | J77: 252346.5758 | K77: 1204.100538 | L77: 788.5830494 | M77: 415.5174887 | N77: 251931.0583
A78: 21 | B78: 251931.0583 | C78: 1204.100538 | D78: 787.2845572 | E78: 416.8159808 | F78: 251514.2423 | I78: 28 | J78: 251931.0583 | K78: 1204.100538 | L78: 787.2845572 | M78: 416.8159808 | N78: 251514.2423
A79: 22 | B79: 251514.2423 | C79: 1204.100538 | D79: 785.9820073 | E79: 418.1185308 | F79: 251096.1238 | I79: 29 | J79: 251514.2423 | K79: 1204.100538 | L79: 785.9820073 | M79: 418.1185308 | N79: 251096.1238
A80: 23 | B80: 251096.1238 | C80: 1204.100538 | D80: 784.6753869 | E80: 419.4251512 | F80: 250676.6987 | I80: 30 | J80: 251096.1238 | K80: 1204.100538 | L80: 784.6753869 | M80: 419.4251512 | N80: 250676.6987
A81: 24 | B81: 250676.6987 | C81: 1204.100538 | D81: 783.3646833 | E81: 420.7358548 | F81: 250255.9628 | I81: 31 | J81: 250676.6987 | K81: 1204.100538 | L81: 783.3646833 | M81: 420.7358548 | N81: 250255.9628
A82: 25 | B82: 250255.9628 | C82: 1204.100538 | D82: 782.0498838 | E82: 422.0506543 | F82: 249833.9121 | I82: 32 | J82: 250255.9628 | K82: 1204.100538 | L82: 782.0498838 | M82: 422.0506543 | N82: 249833.9121
A83: 26 | B83: 249833.9121 | C83: 1204.100538 | D83: 780.7309755 | E83: 423.3695626 | F83: 249410.5426 | I83: 33 | J83: 249833.9121 | K83: 1204.100538 | L83: 780.7309755 | M83: 423.3695626 | N83: 249410.5426
A84: 27 | B84: 249410.5426 | C84: 1204.100538 | D84: 779.4079456 | E84: 424.6925925 | F84: 248985.85 | I84: 34 | J84: 249410.5426 | K84: 1204.100538 | L84: 779.4079456 | M84: 424.6925925 | N84: 248985.85
A85: 28 | B85: 248985.85 | C85: 1204.100538 | D85: 778.0807812 | E85: 426.0197569 | F85: 248559.8302 | I85: 35 | J85: 248985.85 | K85: 1204.100538 | L85: 778.0807812 | M85: 426.0197569 | N85: 248559.8302
A86: 29 | B86: 248559.8302 | C86: 1204.100538 | D86: 776.7494695 | E86: 427.3510686 | F86: 248132.4792 | I86: 36 | J86: 248559.8302 | K86: 1204.100538 | L86: 776.7494695 | M86: 427.3510686 | N86: 248132.4792
A87: 30 | B87: 248132.4792 | C87: 1204.100538 | D87: 775.4139974 | E87: 428.6865407 | F87: 247703.7926 | I87: 37 | J87: 248132.4792 | K87: 1204.100538 | L87: 775.4139974 | M87: 428.6865407 | N87: 247703.7926
A88: 31 | B88: 247703.7926 | C88: 1204.100538 | D88: 774.074352 | E88: 430.0261861 | F88: 247273.7664 | I88: 38 | J88: 247703.7926 | K88: 1204.100538 | L88: 774.074352 | M88: 430.0261861 | N88: 247273.7664
A89: 32 | B89: 247273.7664 | C89: 1204.100538 | D89: 772.7305201 | E89: 431.370018 | F89: 246842.3964 | I89: 39 | J89: 247273.7664 | K89: 1204.100538 | L89: 772.7305201 | M89: 431.370018 | N89: 246842.3964
A90: 33 | B90: 246842.3964 | C90: 1204.100538 | D90: 771.3824888 | E90: 432.7180493 | F90: 246409.6784 | I90: 40 | J90: 246842.3964 | K90: 1204.100538 | L90: 771.3824888 | M90: 432.7180493 | N90: 246409.6784
A91: 34 | B91: 246409.6784 | C91: 1204.100538 | D91: 770.0302449 | E91: 434.0702932 | F91: 245975.6081 | I91: 41 | J91: 246409.6784 | K91: 1204.100538 | L91: 770.0302449 | M91: 434.0702932 | N91: 245975.6081
A92: 35 | B92: 245975.6081 | C92: 1204.100538 | D92: 768.6737752 | E92: 435.4267628 | F92: 245540.1813 | I92: 42 | J92: 245975.6081 | K92: 1204.100538 | L92: 768.6737752 | M92: 435.4267628 | N92: 245540.1813
A93: 36 | B93: 245540.1813 | C93: 1204.100538 | D93: 767.3130666 | E93: 436.7874715 | F93: 245103.3938 | I93: 43 | J93: 245540.1813 | K93: 1204.100538 | L93: 767.3130666 | M93: 436.7874715 | N93: 245103.3938
A94: 37 | B94: 245103.3938 | C94: 1204.100538 | D94: 765.9481058 | E94: 438.1524323 | F94: 244665.2414 | I94: 44 | J94: 245103.3938 | K94: 1204.100538 | L94: 765.9481058 | M94: 438.1524323 | N94: 244665.2414
A95: 38 | B95: 244665.2414 | C95: 1204.100538 | D95: 764.5788794 | E95: 439.5216587 | F95: 244225.7198 | I95: 45 | J95: 244665.2414 | K95: 1204.100538 | L95: 764.5788794 | M95: 439.5216587 | N95: 244225.7198
A96: 39 | B96: 244225.7198 | C96: 1204.100538 | D96: 763.2053742 | E96: 440.8951639 | F96: 243784.8246 | I96: 46 | J96: 244225.7198 | K96: 1204.100538 | L96: 763.2053742 | M96: 440.8951639 | N96: 243784.8246
A97: 40 | B97: 243784.8246 | C97: 1204.100538 | D97: 761.8275768 | E97: 442.2729612 | F97: 243342.5516 | I97: 47 | J97: 243784.8246 | K97: 1204.100538 | L97: 761.8275768 | M97: 442.2729612 | N97: 243342.5516
A98: 41 | B98: 243342.5516 | C98: 1204.100538 | D98: 760.4454738 | E98: 443.6550642 | F98: 242898.8966 | I98: 48 | J98: 243342.5516 | K98: 1204.100538 | L98: 760.4454738 | M98: 443.6550642 | N98: 242898.8966
A99: 42 | B99: 242898.8966 | C99: 1204.100538 | D99: 759.0590518 | E99: 445.0414863 | F99: 242453.8551 | I99: 49 | J99: 242898.8966 | K99: 1204.100538 | L99: 759.0590518 | M99: 445.0414863 | N99: 242453.8551
A100: 43 | B100: 242453.8551 | C100: 1204.100538 | D100: 757.6682971 | E100: 446.432241 | F100: 242007.4228 | I100: 50 | J100: 242453.8551 | K100: 1204.100538 | L100: 757.6682971 | M100: 446.432241 | N100: 242007.4228
A101: 44 | B101: 242007.4228 | C101: 1204.100538 | D101: 756.2731964 | E101: 447.8273417 | F101: 241559.5955 | I101: 51 | J101: 242007.4228 | K101: 1204.100538 | L101: 756.2731964 | M101: 447.8273417 | N101: 241559.5955
A102: 45 | B102: 241559.5955 | C102: 1204.100538 | D102: 754.8737359 | E102: 449.2268022 | F102: 241110.3687 | I102: 52 | J102: 241559.5955 | K102: 1204.100538 | L102: 754.8737359 | M102: 449.2268022 | N102: 241110.3687
A103: 46 | B103: 241110.3687 | C103: 1204.100538 | D103: 753.4699022 | E103: 450.6306359 | F103: 240659.7381 | I103: 53 | J103: 241110.3687 | K103: 1204.100538 | L103: 753.4699022 | M103: 450.6306359 | N103: 240659.7381
A104: 47 | B104: 240659.7381 | C104: 1204.100538 | D104: 752.0616814 | E104: 452.0388567 | F104: 240207.6992 | I104: 54 | J104: 240659.7381 | K104: 1204.100538 | L104: 752.0616814 | M104: 452.0388567 | N104: 240207.6992
A105: 48 | B105: 240207.6992 | C105: 1204.100538 | D105: 750.64906 | E105: 453.4514781 | F105: 239754.2477 | I105: 55 | J105: 240207.6992 | K105: 1204.100538 | L105: 750.64906 | M105: 453.4514781 | N105: 239754.2477
A106: 49 | B106: 239754.2477 | C106: 1204.100538 | D106: 749.2320241 | E106: 454.868514 | F106: 239299.3792 | I106: 56 | J106: 239754.2477 | K106: 1204.100538 | L106: 749.2320241 | M106: 454.868514 | N106: 239299.3792
A107: 50 | B107: 239299.3792 | C107: 1204.100538 | D107: 747.81056 | E107: 456.2899781 | F107: 238843.0892 | I107: 57 | J107: 239299.3792 | K107: 1204.100538 | L107: 747.81056 | M107: 456.2899781 | N107: 238843.0892
A108: 51 | B108: 238843.0892 | C108: 1204.100538 | D108: 746.3846538 | E108: 457.7158842 | F108: 238385.3733 | I108: 58 | J108: 238843.0892 | K108: 1204.100538 | L108: 746.3846538 | M108: 457.7158842 | N108: 238385.3733
A109: 52 | B109: 238385.3733 | C109: 1204.100538 | D109: 744.9542917 | E109: 459.1462464 | F109: 237926.2271 | I109: 59 | J109: 238385.3733 | K109: 1204.100538 | L109: 744.9542917 | M109: 459.1462464 | N109: 237926.2271
A110: 53 | B110: 237926.2271 | C110: 1204.100538 | D110: 743.5194597 | E110: 460.5810784 | F110: 237465.646 | I110: 60 | J110: 237926.2271 | K110: 1204.100538 | L110: 743.5194597 | M110: 460.5810784 | N110: 237465.646
A111: 54 | B111: 237465.646 | C111: 1204.100538 | D111: 742.0801438 | E111: 462.0203943 | F111: 237003.6256 | I111: 61 | J111: 237465.646 | K111: 1204.100538 | L111: 742.0801438 | M111: 462.0203943 | N111: 237003.6256
A112: 55 | B112: 237003.6256 | C112: 1204.100538 | D112: 740.6363301 | E112: 463.464208 | F112: 236540.1614 | I112: 62 | J112: 237003.6256 | K112: 1204.100538 | L112: 740.6363301 | M112: 463.464208 | N112: 236540.1614
A113: 56 | B113: 236540.1614 | C113: 1204.100538 | D113: 739.1880044 | E113: 464.9125337 | F113: 236075.2489 | I113: 63 | J113: 236540.1614 | K113: 1204.100538 | L113: 739.1880044 | M113: 464.9125337 | N113: 236075.2489
A114: 57 | B114: 236075.2489 | C114: 1204.100538 | D114: 737.7351528 | E114: 466.3653853 | F114: 235608.8835 | I114: 64 | J114: 236075.2489 | K114: 1204.100538 | L114: 737.7351528 | M114: 466.3653853 | N114: 235608.8835
A115: 58 | B115: 235608.8835 | C115: 1204.100538 | D115: 736.2777609 | E115: 467.8227771 | F115: 235141.0607 | I115: 65 | J115: 235608.8835 | K115: 1204.100538 | L115: 736.2777609 | M115: 467.8227771 | N115: 235141.0607
A116: 59 | B116: 235141.0607 | C116: 1204.100538 | D116: 734.8158148 | E116: 469.2847233 | F116: 234671.776 | I116: 66 | J116: 235141.0607 | K116: 1204.100538 | L116: 734.8158148 | M116: 469.2847233 | N116: 234671.776
A117: 60 | B117: 234671.776 | C117: 1204.100538 | D117: 733.3493 | E117: 470.7512381 | F117: 234201.0248 | I117: 67 | J117: 234671.776 | K117: 1204.100538 | L117: 733.3493 | M117: 470.7512381 | N117: 234201.0248
A118: 61 | B118: 234201.0248 | C118: 1204.100538 | D118: 731.8782024 | E118: 472.2223357 | F118: 233728.8024 | I118: 68 | J118: 234201.0248 | K118: 1204.100538 | L118: 731.8782024 | M118: 472.2223357 | N118: 233728.8024
A119: 62 | B119: 233728.8024 | C119: 1204.100538 | D119: 730.4025076 | E119: 473.6980305 | F119: 233255.1044 | I119: 69 | J119: 233728.8024 | K119: 1204.100538 | L119: 730.4025076 | M119: 473.6980305 | N119: 233255.1044
A120: 63 | B120: 233255.1044 | C120: 1204.100538 | D120: 728.9222012 | E120: 475.1783369 | F120: 232779.9261 | I120: 70 | J120: 233255.1044 | K120: 1204.100538 | L120: 728.9222012 | M120: 475.1783369 | N120: 232779.9261
A121: 64 | B121: 232779.9261 | C121: 1204.100538 | D121: 727.4372689 | E121: 476.6632692 | F121: 232303.2628 | I121: 71 | J121: 232779.9261 | K121: 1204.100538 | L121: 727.4372689 | M121: 476.6632692 | N121: 232303.2628
A122: 65 | B122: 232303.2628 | C122: 1204.100538 | D122: 725.9476962 | E122: 478.1528419 | F122: 231825.1099 | I122: 72 | J122: 232303.2628 | K122: 1204.100538 | L122: 725.9476962 | M122: 478.1528419 | N122: 231825.1099
A123: 66 | B123: 231825.1099 | C123: 1204.100538 | D123: 724.4534686 | E123: 479.6470695 | F123: 231345.4629 | I123: 73 | J123: 231825.1099 | K123: 1204.100538 | L123: 724.4534686 | M123: 479.6470695 | N123: 231345.4629
A124: 67 | B124: 231345.4629 | C124: 1204.100538 | D124: 722.9545715 | E124: 481.1459666 | F124: 230864.3169 | I124: 74 | J124: 231345.4629 | K124: 1204.100538 | L124: 722.9545715 | M124: 481.1459666 | N124: 230864.3169
A125: 68 | B125: 230864.3169 | C125: 1204.100538 | D125: 721.4509903 | E125: 482.6495477 | F125: 230381.6674 | I125: 75 | J125: 230864.3169 | K125: 1204.100538 | L125: 721.4509903 | M125: 482.6495477 | N125: 230381.6674
A126: 69 | B126: 230381.6674 | C126: 1204.100538 | D126: 719.9427105 | E126: 484.1578276 | F126: 229897.5095 | I126: 76 | J126: 230381.6674 | K126: 1204.100538 | L126: 719.9427105 | M126: 484.1578276 | N126: 229897.5095
A127: 70 | B127: 229897.5095 | C127: 1204.100538 | D127: 718.4297173 | E127: 485.6708208 | F127: 229411.8387 | I127: 77 | J127: 229897.5095 | K127: 1204.100538 | L127: 718.4297173 | M127: 485.6708208 | N127: 229411.8387
A128: 71 | B128: 229411.8387 | C128: 1204.100538 | D128: 716.911996 | E128: 487.1885421 | F128: 228924.6502 | I128: 78 | J128: 229411.8387 | K128: 1204.100538 | L128: 716.911996 | M128: 487.1885421 | N128: 228924.6502
A129: 72 | B129: 228924.6502 | C129: 1204.100538 | D129: 715.3895318 | E129: 488.7110063 | F129: 228435.9392 | I129: 79 | J129: 228924.6502 | K129: 1204.100538 | L129: 715.3895318 | M129: 488.7110063 | N129: 228435.9392
A130: 73 | B130: 228435.9392 | C130: 1204.100538 | D130: 713.8623099 | E130: 490.2382282 | F130: 227945.7009 | I130: 80 | J130: 228435.9392 | K130: 1204.100538 | L130: 713.8623099 | M130: 490.2382282 | N130: 227945.7009
A131: 74 | B131: 227945.7009 | C131: 1204.100538 | D131: 712.3303154 | E131: 491.7702227 | F131: 227453.9307 | I131: 81 | J131: 227945.7009 | K131: 1204.100538 | L131: 712.3303154 | M131: 491.7702227 | N131: 227453.9307
A132: 75 | B132: 227453.9307 | C132: 1204.100538 | D132: 710.7935335 | E132: 493.3070046 | F132: 226960.6237 | I132: 82 | J132: 227453.9307 | K132: 1204.100538 | L132: 710.7935335 | M132: 493.3070046 | N132: 226960.6237
A133: 76 | B133: 226960.6237 | C133: 1204.100538 | D133: 709.2519491 | E133: 494.848589 | F133: 226465.7751 | I133: 83 | J133: 226960.6237 | K133: 1204.100538 | L133: 709.2519491 | M133: 494.848589 | N133: 226465.7751
A134: 77 | B134: 226465.7751 | C134: 1204.100538 | D134: 707.7055473 | E134: 496.3949908 | F134: 225969.3801 | I134: 84 | J134: 226465.7751 | K134: 1204.100538 | L134: 707.7055473 | M134: 496.3949908 | N134: 225969.3801
A135: 78 | B135: 225969.3801 | C135: 1204.100538 | D135: 706.1543129 | E135: 497.9462252 | F135: 225471.4339 | I135: 85 | J135: 225969.3801 | K135: 1204.100538 | L135: 706.1543129 | M135: 497.9462252 | N135: 225471.4339
A136: 79 | B136: 225471.4339 | C136: 1204.100538 | D136: 704.598231 | E136: 499.5023071 | F136: 224971.9316 | I136: 86 | J136: 225471.4339 | K136: 1204.100538 | L136: 704.598231 | M136: 499.5023071 | N136: 224971.9316
A137: 80 | B137: 224971.9316 | C137: 1204.100538 | D137: 703.0372862 | E137: 501.0632518 | F137: 224470.8683 | I137: 87 | J137: 224971.9316 | K137: 1204.100538 | L137: 703.0372862 | M137: 501.0632518 | N137: 224470.8683
A138: 81 | B138: 224470.8683 | C138: 1204.100538 | D138: 701.4714636 | E138: 502.6290745 | F138: 223968.2393 | I138: 88 | J138: 224470.8683 | K138: 1204.100538 | L138: 701.4714636 | M138: 502.6290745 | N138: 223968.2393
A139: 82 | B139: 223968.2393 | C139: 1204.100538 | D139: 699.9007477 | E139: 504.1997904 | F139: 223464.0395 | I139: 89 | J139: 223968.2393 | K139: 1204.100538 | L139: 699.9007477 | M139: 504.1997904 | N139: 223464.0395
A140: 83 | B140: 223464.0395 | C140: 1204.100538 | D140: 698.3251234 | E140: 505.7754147 | F140: 222958.2641 | I140: 90 | J140: 223464.0395 | K140: 1204.100538 | L140: 698.3251234 | M140: 505.7754147 | N140: 222958.2641
A141: 84 | B141: 222958.2641 | C141: 1204.100538 | D141: 696.7445752 | E141: 507.3559629 | F141: 222450.9081 | I141: 91 | J141: 222958.2641 | K141: 1204.100538 | L141: 696.7445752 | M141: 507.3559629 | N141: 222450.9081
A142: 85 | B142: 222450.9081 | C142: 1204.100538 | D142: 695.1590878 | E142: 508.9414503 | F142: 221941.9667 | I142: 92 | J142: 222450.9081 | K142: 1204.100538 | L142: 695.1590878 | M142: 508.9414503 | N142: 221941.9667
A143: 86 | B143: 221941.9667 | C143: 1204.100538 | D143: 693.5686458 | E143: 510.5318923 | F143: 221431.4348 | I143: 93 | J143: 221941.9667 | K143: 1204.100538 | L143: 693.5686458 | M143: 510.5318923 | N143: 221431.4348
A144: 87 | B144: 221431.4348 | C144: 1204.100538 | D144: 691.9732336 | E144: 512.1273045 | F144: 220919.3075 | I144: 94 | J144: 221431.4348 | K144: 1204.100538 | L144: 691.9732336 | M144: 512.1273045 | N144: 220919.3075
A145: 88 | B145: 220919.3075 | C145: 1204.100538 | D145: 690.3728358 | E145: 513.7277023 | F145: 220405.5798 | I145: 95 | J145: 220919.3075 | K145: 1204.100538 | L145: 690.3728358 | M145: 513.7277023 | N145: 220405.5798
A146: 89 | B146: 220405.5798 | C146: 1204.100538 | D146: 688.7674367 | E146: 515.3331014 | F146: 219890.2467 | I146: 96 | J146: 220405.5798 | K146: 1204.100538 | L146: 688.7674367 | M146: 515.3331014 | N146: 219890.2467
A147: 90 | B147: 219890.2467 | C147: 1204.100538 | D147: 687.1570208 | E147: 516.9435173 | F147: 219373.3031 | I147: 97 | J147: 219890.2467 | K147: 1204.100538 | L147: 687.1570208 | M147: 516.9435173 | N147: 219373.3031
A148: 91 | B148: 219373.3031 | C148: 1204.100538 | D148: 685.5415723 | E148: 518.5589658 | F148: 218854.7442 | I148: 98 | J148: 219373.3031 | K148: 1204.100538 | L148: 685.5415723 | M148: 518.5589658 | N148: 218854.7442
A149: 92 | B149: 218854.7442 | C149: 1204.100538 | D149: 683.9210755 | E149: 520.1794626 | F149: 218334.5647 | I149: 99 | J149: 218854.7442 | K149: 1204.100538 | L149: 683.9210755 | M149: 520.1794626 | N149: 218334.5647
A150: 93 | B150: 218334.5647 | C150: 1204.100538 | D150: 682.2955147 | E150: 521.8050234 | F150: 217812.7597 | I150: 100 | J150: 218334.5647 | K150: 1204.100538 | L150: 682.2955147 | M150: 521.8050234 | N150: 217812.7597
A151: 94 | B151: 217812.7597 | C151: 1204.100538 | D151: 680.664874 | E151: 523.4356641 | F151: 217289.324 | I151: 101 | J151: 217812.7597 | K151: 1204.100538 | L151: 680.664874 | M151: 523.4356641 | N151: 217289.324
A152: 95 | B152: 217289.324 | C152: 1204.100538 | D152: 679.0291376 | E152: 525.0714005 | F152: 216764.2526 | I152: 102 | J152: 217289.324 | K152: 1204.100538 | L152: 679.0291376 | M152: 525.0714005 | N152: 216764.2526
A153: 96 | B153: 216764.2526 | C153: 1204.100538 | D153: 677.3882894 | E153: 526.7122486 | F153: 216237.5404 | I153: 103 | J153: 216764.2526 | K153: 1204.100538 | L153: 677.3882894 | M153: 526.7122486 | N153: 216237.5404
A154: 97 | B154: 216237.5404 | C154: 1204.100538 | D154: 675.7423137 | E154: 528.3582244 | F154: 215709.1821 | I154: 104 | J154: 216237.5404 | K154: 1204.100538 | L154: 675.7423137 | M154: 528.3582244 | N154: 215709.1821
A155: 98 | B155: 215709.1821 | C155: 1204.100538 | D155: 674.0911942 | E155: 530.0093439 | F155: 215179.1728 | I155: 105 | J155: 215709.1821 | K155: 1204.100538 | L155: 674.0911942 | M155: 530.0093439 | N155: 215179.1728
A156: 99 | B156: 215179.1728 | C156: 1204.100538 | D156: 672.434915 | E156: 531.6656231 | F156: 214647.5072 | I156: 106 | J156: 215179.1728 | K156: 1204.100538 | L156: 672.434915 | M156: 531.6656231 | N156: 214647.5072
A157: 100 | B157: 214647.5072 | C157: 1204.100538 | D157: 670.7734599 | E157: 533.3270781 | F157: 214114.1801 | I157: 107 | J157: 214647.5072 | K157: 1204.100538 | L157: 670.7734599 | M157: 533.3270781 | N157: 214114.1801
A158: 101 | B158: 214114.1801 | C158: 1204.100538 | D158: 669.1068128 | E158: 534.9937253 | F158: 213579.1864 | I158: 108 | J158: 214114.1801 | K158: 1204.100538 | L158: 669.1068128 | M158: 534.9937253 | N158: 213579.1864
A159: 102 | B159: 213579.1864 | C159: 1204.100538 | D159: 667.4349574 | E159: 536.6655807 | F159: 213042.5208 | I159: 109 | J159: 213579.1864 | K159: 1204.100538 | L159: 667.4349574 | M159: 536.6655807 | N159: 213042.5208
A160: 103 | B160: 213042.5208 | C160: 1204.100538 | D160: 665.7578775 | E160: 538.3426606 | F160: 212504.1781 | I160: 110 | J160: 213042.5208 | K160: 1204.100538 | L160: 665.7578775 | M160: 538.3426606 | N160: 212504.1781
A161: 104 | B161: 212504.1781 | C161: 1204.100538 | D161: 664.0755567 | E161: 540.0249814 | F161: 211964.1532 | I161: 111 | J161: 212504.1781 | K161: 1204.100538 | L161: 664.0755567 | M161: 540.0249814 | N161: 211964.1532
A162: 105 | B162: 211964.1532 | C162: 1204.100538 | D162: 662.3879786 | E162: 541.7125595 | F162: 211422.4406 | I162: 112 | J162: 211964.1532 | K162: 1204.100538 | L162: 662.3879786 | M162: 541.7125595 | N162: 211422.4406
A163: 106 | B163: 211422.4406 | C163: 1204.100538 | D163: 660.6951269 | E163: 543.4054112 | F163: 210879.0352 | I163: 113 | J163: 211422.4406 | K163: 1204.100538 | L163: 660.6951269 | M163: 543.4054112 | N163: 210879.0352
A164: 107 | B164: 210879.0352 | C164: 1204.100538 | D164: 658.9969849 | E164: 545.1035531 | F164: 210333.9316 | I164: 114 | J164: 210879.0352 | K164: 1204.100538 | L164: 658.9969849 | M164: 545.1035531 | N164: 210333.9316
A165: 108 | B165: 210333.9316 | C165: 1204.100538 | D165: 657.2935363 | E165: 546.8070017 | F165: 209787.1246 | I165: 115 | J165: 210333.9316 | K165: 1204.100538 | L165: 657.2935363 | M165: 546.8070017 | N165: 209787.1246
A166: 109 | B166: 209787.1246 | C166: 1204.100538 | D166: 655.5847645 | E166: 548.5157736 | F166: 209238.6089 | I166: 116 | J166: 209787.1246 | K166: 1204.100538 | L166: 655.5847645 | M166: 548.5157736 | N166: 209238.6089
A167: 110 | B167: 209238.6089 | C167: 1204.100538 | D167: 653.8706527 | E167: 550.2298854 | F167: 208688.379 | I167: 117 | J167: 209238.6089 | K167: 1204.100538 | L167: 653.8706527 | M167: 550.2298854 | N167: 208688.379
A168: 111 | B168: 208688.379 | C168: 1204.100538 | D168: 652.1511843 | E168: 551.9493538 | F168: 208136.4296 | I168: 118 | J168: 208688.379 | K168: 1204.100538 | L168: 652.1511843 | M168: 551.9493538 | N168: 208136.4296
A169: 112 | B169: 208136.4296 | C169: 1204.100538 | D169: 650.4263426 | E169: 553.6741955 | F169: 207582.7554 | I169: 119 | J169: 208136.4296 | K169: 1204.100538 | L169: 650.4263426 | M169: 553.6741955 | N169: 207582.7554
A170: 113 | B170: 207582.7554 | C170: 1204.100538 | D170: 648.6961107 | E170: 555.4044274 | F170: 207027.351 | I170: 120 | J170: 207582.7554 | K170: 1204.100538 | L170: 648.6961107 | M170: 555.4044274 | N170: 207027.351
A171: 114 | B171: 207027.351 | C171: 1204.100538 | D171: 646.9604719 | E171: 557.1400662 | F171: 206470.2109 | I171: 121 | J171: 207027.351 | K171: 1204.100538 | L171: 646.9604719 | M171: 557.1400662 | N171: 206470.2109
A172: 115 | B172: 206470.2109 | C172: 1204.100538 | D172: 645.2194091 | E172: 558.8811289 | F172: 205911.3298 | I172: 122 | J172: 206470.2109 | K172: 1204.100538 | L172: 645.2194091 | M172: 558.8811289 | N172: 205911.3298
A173: 116 | B173: 205911.3298 | C173: 1204.100538 | D173: 643.4729056 | E173: 560.6276325 | F173: 205350.7022 | I173: 123 | J173: 205911.3298 | K173: 1204.100538 | L173: 643.4729056 | M173: 560.6276325 | N173: 205350.7022
A174: 117 | B174: 205350.7022 | C174: 1204.100538 | D174: 641.7209443 | E174: 562.3795938 | F174: 204788.3226 | I174: 124 | J174: 205350.7022 | K174: 1204.100538 | L174: 641.7209443 | M174: 562.3795938 | N174: 204788.3226
A175: 118 | B175: 204788.3226 | C175: 1204.100538 | D175: 639.963508 | E175: 564.1370301 | F175: 204224.1855 | I175: 125 | J175: 204788.3226 | K175: 1204.100538 | L175: 639.963508 | M175: 564.1370301 | N175: 204224.1855
A176: 119 | B176: 204224.1855 | C176: 1204.100538 | D176: 638.2005798 | E176: 565.8999583 | F176: 203658.2856 | I176: 126 | J176: 204224.1855 | K176: 1204.100538 | L176: 638.2005798 | M176: 565.8999583 | N176: 203658.2856
A177: 120 | B177: 203658.2856 | C177: 1204.100538 | D177: 636.4321424 | E177: 567.6683956 | F177: 203090.6172 | I177: 127 | J177: 203658.2856 | K177: 1204.100538 | L177: 636.4321424 | M177: 567.6683956 | N177: 203090.6172
A178: 121 | B178: 203090.6172 | C178: 1204.100538 | D178: 634.6581787 | E178: 569.4423594 | F178: 202521.1748 | I178: 128 | J178: 203090.6172 | K178: 1204.100538 | L178: 634.6581787 | M178: 569.4423594 | N178: 202521.1748
A179: 122 | B179: 202521.1748 | C179: 1204.100538 | D179: 632.8786713 | E179: 571.2218667 | F179: 201949.953 | I179: 129 | J179: 202521.1748 | K179: 1204.100538 | L179: 632.8786713 | M179: 571.2218667 | N179: 201949.953
A180: 123 | B180: 201949.953 | C180: 1204.100538 | D180: 631.093603 | E180: 573.0069351 | F180: 201376.946 | I180: 130 | J180: 201949.953 | K180: 1204.100538 | L180: 631.093603 | M180: 573.0069351 | N180: 201376.946
A181: 124 | B181: 201376.946 | C181: 1204.100538 | D181: 629.3029563 | E181: 574.7975818 | F181: 200802.1484 | I181: 131 | J181: 201376.946 | K181: 1204.100538 | L181: 629.3029563 | M181: 574.7975818 | N181: 200802.1484
A182: 125 | B182: 200802.1484 | C182: 1204.100538 | D182: 627.5067139 | E182: 576.5938242 | F182: 200225.5546 | I182: 132 | J182: 200802.1484 | K182: 1204.100538 | L182: 627.5067139 | M182: 576.5938242 | N182: 200225.5546
A183: 126 | B183: 200225.5546 | C183: 1204.100538 | D183: 625.7048582 | E183: 578.3956799 | F183: 199647.1589 | I183: 133 | J183: 200225.5546 | K183: 1204.100538 | L183: 625.7048582 | M183: 578.3956799 | N183: 199647.1589
A184: 127 | B184: 199647.1589 | C184: 1204.100538 | D184: 623.8973717 | E184: 580.2031664 | F184: 199066.9558 | I184: 134 | J184: 199647.1589 | K184: 1204.100538 | L184: 623.8973717 | M184: 580.2031664 | N184: 199066.9558
A185: 128 | B185: 199066.9558 | C185: 1204.100538 | D185: 622.0842368 | E185: 582.0163013 | F185: 198484.9395 | I185: 135 | J185: 199066.9558 | K185: 1204.100538 | L185: 622.0842368 | M185: 582.0163013 | N185: 198484.9395
A186: 129 | B186: 198484.9395 | C186: 1204.100538 | D186: 620.2654359 | E186: 583.8351022 | F186: 197901.1044 | I186: 136 | J186: 198484.9395 | K186: 1204.100538 | L186: 620.2654359 | M186: 583.8351022 | N186: 197901.1044
A187: 130 | B187: 197901.1044 | C187: 1204.100538 | D187: 618.4409512 | E187: 585.6595869 | F187: 197315.4448 | I187: 137 | J187: 197901.1044 | K187: 1204.100538 | L187: 618.4409512 | M187: 585.6595869 | N187: 197315.4448
A188: 131 | B188: 197315.4448 | C188: 1204.100538 | D188: 616.6107649 | E188: 587.4897731 | F188: 196727.955 | I188: 138 | J188: 197315.4448 | K188: 1204.100538 | L188: 616.6107649 | M188: 587.4897731 | N188: 196727.955
A189: 132 | B189: 196727.955 | C189: 1204.100538 | D189: 614.7748594 | E189: 589.3256787 | F189: 196138.6293 | I189: 139 | J189: 196727.955 | K189: 1204.100538 | L189: 614.7748594 | M189: 589.3256787 | N189: 196138.6293
A190: 133 | B190: 196138.6293 | C190: 1204.100538 | D190: 612.9332167 | E190: 591.1673214 | F190: 195547.462 | I190: 140 | J190: 196138.6293 | K190: 1204.100538 | L190: 612.9332167 | M190: 591.1673214 | N190: 195547.462
A191: 134 | B191: 195547.462 | C191: 1204.100538 | D191: 611.0858188 | E191: 593.0147193 | F191: 194954.4473 | I191: 141 | J191: 195547.462 | K191: 1204.100538 | L191: 611.0858188 | M191: 593.0147193 | N191: 194954.4473
A192: 135 | B192: 194954.4473 | C192: 1204.100538 | D192: 609.2326478 | E192: 594.8678903 | F192: 194359.5794 | I192: 142 | J192: 194954.4473 | K192: 1204.100538 | L192: 609.2326478 | M192: 594.8678903 | N192: 194359.5794
A193: 136 | B193: 194359.5794 | C193: 1204.100538 | D193: 607.3736856 | E193: 596.7268525 | F193: 193762.8525 | I193: 143 | J193: 194359.5794 | K193: 1204.100538 | L193: 607.3736856 | M193: 596.7268525 | N193: 193762.8525
A194: 137 | B194: 193762.8525 | C194: 1204.100538 | D194: 605.5089142 | E194: 598.5916239 | F194: 193164.2609 | I194: 144 | J194: 193762.8525 | K194: 1204.100538 | L194: 605.5089142 | M194: 598.5916239 | N194: 193164.2609
A195: 138 | B195: 193164.2609 | C195: 1204.100538 | D195: 603.6383154 | E195: 600.4622227 | F195: 192563.7987 | I195: 145 | J195: 193164.2609 | K195: 1204.100538 | L195: 603.6383154 | M195: 600.4622227 | N195: 192563.7987
A196: 139 | B196: 192563.7987 | C196: 1204.100538 | D196: 601.7618709 | E196: 602.3386671 | F196: 191961.46 | I196: 146 | J196: 192563.7987 | K196: 1204.100538 | L196: 601.7618709 | M196: 602.3386671 | N196: 191961.46
A197: 140 | B197: 191961.46 | C197: 1204.100538 | D197: 599.8795626 | E197: 604.2209755 | F197: 191357.2391 | I197: 147 | J197: 191961.46 | K197: 1204.100538 | L197: 599.8795626 | M197: 604.2209755 | N197: 191357.2391
A198: 141 | B198: 191357.2391 | C198: 1204.100538 | D198: 597.9913721 | E198: 606.109166 | F198: 190751.1299 | I198: 148 | J198: 191357.2391 | K198: 1204.100538 | L198: 597.9913721 | M198: 606.109166 | N198: 190751.1299
A199: 142 | B199: 190751.1299 | C199: 1204.100538 | D199: 596.0972809 | E199: 608.0032572 | F199: 190143.1266 | I199: 149 | J199: 190751.1299 | K199: 1204.100538 | L199: 596.0972809 | M199: 608.0032572 | N199: 190143.1266
A200: 143 | B200: 190143.1266 | C200: 1204.100538 | D200: 594.1972707 | E200: 609.9032673 | F200: 189533.2234 | I200: 150 | J200: 190143.1266 | K200: 1204.100538 | L200: 594.1972707 | M200: 609.9032673 | N200: 189533.2234
A201: 144 | B201: 189533.2234 | C201: 1204.100538 | D201: 592.291323 | E201: 611.8092151 | F201: 188921.4142 | I201: 151 | J201: 189533.2234 | K201: 1204.100538 | L201: 592.291323 | M201: 611.8092151 | N201: 188921.4142
... 336 more rows

Sheet Chart Inputs
B2: Construction Timeline: | C2: 6 | D2: Fix & Hold
C5: Month | D5: Cash Needed | F5: Year | G5: NOI | H5: CF After Debt | I5: DSCR*
C6: 0 | D6: 67244 | F6: 1 | G6: 3564.166667 | H6: -9791.669357
C7: 1 | D7: 0 | F7: 2 | G7: 18112.22 | H7: 3663.013543 | I7: 1.253509669
C8: 2 | D8: 22662.58333 | F8: 3 | G8: 18624.0686 | H8: 4174.862143 | I8: 1.288933663
C9: 3 | D9: 0 | F9: 4 | G9: 19215.2542 | H9: 4766.047741 | I9: 1.329848408
C10: 4 | D10: 12355.08333 | F10: 5 | G10: 19791.71182 | H10: 5342.505367 | I10: 1.36974386
C11: 5 | D11: 0 | F11: 6 | G11: 20385.46318 | H11: 5936.256722 | I11: 1.410836176
C12: 6 | D12: 19951.33333 | F12: 7 | G12: 20997.02707 | H12: 6547.820617 | I12: 1.453161261
D13: 0 | F13: 8 | G13: 21626.93789 | H13: 7177.731429 | I13: 1.496756099
D14: 0 | F14: 9 | G14: 22275.74602 | H14: 7826.539566 | I14: 1.541658782
D15: 0 | F15: 10 | G15: 22944.0184 | H15: 8494.811946 | I15: 1.587908545
D16: 0
D17: 0
D18: 0
